Body,Body name,Date,Transaction number,Amount,Non recoverable VAT included in amount,Supplier name,Supplier ID,Expense area,Fund type,Expense type,Category description
http://thanet.gov.uk/supplierspend,Thanet District Council,02/07/2015,386281,7920.00,,Gatenbysanderson Ltd,GAT002,Corporate Resources and S151,Revenue,Services,Human Resources
http://thanet.gov.uk/supplierspend,Thanet District Council,07/07/2015,387450,250.00,,All Sign Solutions Ltd,ALL002,Operational Services,Revenue,"Equip, Furniture And Materials",Building Construction Material
http://thanet.gov.uk/supplierspend,Thanet District Council,07/07/2015,387557,3300.00,,All Sign Solutions Ltd,ALL002,Operational Services,Revenue,"Equip, Furniture And Materials",Building Construction Material
http://thanet.gov.uk/supplierspend,Thanet District Council,07/07/2015,387578,285.00,,All Sign Solutions Ltd,ALL002,Operational Services,Revenue,"Equip, Furniture And Materials",Building Construction Material
http://thanet.gov.uk/supplierspend,Thanet District Council,07/07/2015,388100,240.00,,Archant Community Media Ltd (Kos),ARC007,Corporate Resources and S151,Revenue,Miscellaneous Expenses,Facilities And Management Serv
http://thanet.gov.uk/supplierspend,Thanet District Council,07/07/2015,387447,2413.13,,British Marine Federation,BRI002,Operational Services,Revenue,Grants & Subscriptions,Human Resources
http://thanet.gov.uk/supplierspend,Thanet District Council,07/07/2015,388000,720.00,,Canterbury College,CAN005,Operational Services,Revenue,Training,Human Resources
http://thanet.gov.uk/supplierspend,Thanet District Council,07/07/2015,387434,210.35,,City Electrical Factors Ltd,CIT001,Operational Services,Revenue,"Equip, Furniture And Materials",Building Construction Material
http://thanet.gov.uk/supplierspend,Thanet District Council,07/07/2015,387614,434.37,,Civica Uk Ltd,CIV003,East Kent Shared Services,Revenue,Communications & Computing,ICT
http://thanet.gov.uk/supplierspend,Thanet District Council,07/07/2015,387397,391.60,,Cleveland Cable Company Limited,CLE019,Operational Services,Revenue,"Repairs,  Alter & Mtce - Build",Building Construction Material
http://thanet.gov.uk/supplierspend,Thanet District Council,07/07/2015,387253,1150.43,,Electrical Lighting Solutions Ltd,ELE013,Operational Services,Revenue,"Repairs,  Alter & Mtce - Build",Building Construction Material
http://thanet.gov.uk/supplierspend,Thanet District Council,07/07/2015,387746,25517.55,,Esri (Uk) Ltd,ESR001,East Kent Shared Services,Revenue,Communications & Computing,ICT
http://thanet.gov.uk/supplierspend,Thanet District Council,07/07/2015,387980,245.00,,F R Jones & Son,JON020,Operational Services,Revenue,"Equip, Furniture And Materials",Horticultural
http://thanet.gov.uk/supplierspend,Thanet District Council,07/07/2015,386720,2100.00,,Focus On Banking Ltd,FOC005,Corporate Resources and S151,Revenue,Services,Consultancy
http://thanet.gov.uk/supplierspend,Thanet District Council,07/07/2015,386935,3005.60,,Gloster Furniture Ltd,GLO002,Operational Services,Revenue,"Equip, Furniture And Materials",Highway Equipment And Material
http://thanet.gov.uk/supplierspend,Thanet District Council,07/07/2015,387945,575.50,,Graffiti Removal Ltd,GRA039,Operational Services,Revenue,"Equip, Furniture And Materials",Cleaning And Janitorial
http://thanet.gov.uk/supplierspend,Thanet District Council,07/07/2015,388031,22773.50,,Grant Thornton Uk Llp,GRA048,Corporate Resources and S151,Revenue,Services,Financial Services
http://thanet.gov.uk/supplierspend,Thanet District Council,07/07/2015,387595,770.00,,Gulliver'S Truck Hire Limited,GUL001,Operational Services,Revenue,Cont Hire & Operating Lease,Vehicle Management
http://thanet.gov.uk/supplierspend,Thanet District Council,07/07/2015,387588,1108.30,,Hi Way Services Ltd,HIW002,Community Services,Revenue,"Equip, Furniture And Materials",Highway Equipment And Material
http://thanet.gov.uk/supplierspend,Thanet District Council,07/07/2015,388005,650.00,,Hi Way Services Ltd,HIW002,Community Services,Revenue,"Equip, Furniture And Materials",Highway Equipment And Material
http://thanet.gov.uk/supplierspend,Thanet District Council,07/07/2015,388350,12558.00,,Hm Land Registry,HML001,Community Services,Revenue,Services,Government Agencies
http://thanet.gov.uk/supplierspend,Thanet District Council,07/07/2015,387378,435.00,,J Redpath Buchanan & Co Ltd,RED001,Corporate Resources and S151,Balance Sheet,Repairs And Mtce Holding A/C,Building Construction Material
http://thanet.gov.uk/supplierspend,Thanet District Council,07/07/2015,387962,12900.00,,Jacobs U.K.Limited,JAC014,Corporate Resources and S151,Balance Sheet,Other Land And Buildings-Hra,Consultancy
http://thanet.gov.uk/supplierspend,Thanet District Council,07/07/2015,387388,18000.00,,Jadu Limited,JAD003,East Kent Shared Services,Revenue,Communications & Computing,ICT
http://thanet.gov.uk/supplierspend,Thanet District Council,07/07/2015,387413,380.27,,John Parker & Son Ltd,PAR001,Operational Services,Revenue,"Repairs,  Alter & Mtce - Build",Building Construction Material
http://thanet.gov.uk/supplierspend,Thanet District Council,07/07/2015,387733,675.00,,John R Couzens,COU001,Operational Services,Revenue,"Repairs,  Alter & Mtce - Build",Construction-Repair And Maint
http://thanet.gov.uk/supplierspend,Thanet District Council,07/07/2015,387615,1500.00,,Jump It Recruitment Solutions Ltd,JUM001,East Kent Shared Services,Revenue,Agency Staff,Human Resources
http://thanet.gov.uk/supplierspend,Thanet District Council,07/07/2015,387616,2485.00,,Jump It Recruitment Solutions Ltd,JUM001,East Kent Shared Services,Revenue,Agency Staff,Human Resources
http://thanet.gov.uk/supplierspend,Thanet District Council,07/07/2015,387426,3402.00,,Kent County Council,KCC002,Community Services,Revenue,Services,Various Cats - Public Sector
http://thanet.gov.uk/supplierspend,Thanet District Council,07/07/2015,387121,1642.16,,Kent County Council (Kcs),KCC003,Operational Services,Revenue,Energy Costs,Facilities And Management Serv
http://thanet.gov.uk/supplierspend,Thanet District Council,07/07/2015,387122,1056.73,,Kent County Council (Kcs),KCC003,Operational Services,Revenue,Energy Costs,Facilities And Management Serv
http://thanet.gov.uk/supplierspend,Thanet District Council,07/07/2015,387123,1301.43,,Kent County Council (Kcs),KCC003,Operational Services,Revenue,Energy Costs,Facilities And Management Serv
http://thanet.gov.uk/supplierspend,Thanet District Council,07/07/2015,387124,1270.13,,Kent County Council (Kcs),KCC003,Operational Services,Revenue,Energy Costs,Facilities And Management Serv
http://thanet.gov.uk/supplierspend,Thanet District Council,07/07/2015,388138,1900.00,,Kpmg Llp Fees Account,KPM001,Corporate Resources and S151,Revenue,Services,Financial Services
http://thanet.gov.uk/supplierspend,Thanet District Council,07/07/2015,387411,309.50,,Leeds Direct Distribution Group Ltd,LEE003,East Kent Shared Services,Revenue,"Equip, Furniture And Materials",Stationery
http://thanet.gov.uk/supplierspend,Thanet District Council,07/07/2015,386716,229.79,,Mears Ltd,MEA003,Community Services,Revenue,"Repairs,  Alter & Mtce - Build",Construction-Repair And Maint
http://thanet.gov.uk/supplierspend,Thanet District Council,07/07/2015,387420,286.87,,Mears Ltd,MEA003,Operational Services,Revenue,"Repairs,  Alter & Mtce - Build",Construction-Repair And Maint
http://thanet.gov.uk/supplierspend,Thanet District Council,07/07/2015,387421,368.36,,Mears Ltd,MEA003,Operational Services,Revenue,"Repairs,  Alter & Mtce - Build",Construction-Repair And Maint
http://thanet.gov.uk/supplierspend,Thanet District Council,07/07/2015,387422,217.87,,Mears Ltd,MEA003,Operational Services,Revenue,"Repairs,  Alter & Mtce - Build",Construction-Repair And Maint
http://thanet.gov.uk/supplierspend,Thanet District Council,07/07/2015,387423,825.16,,Mears Ltd,MEA003,Operational Services,Revenue,"Repairs,  Alter & Mtce - Build",Construction-Repair And Maint
http://thanet.gov.uk/supplierspend,Thanet District Council,07/07/2015,387618,27978.50,,Mears Ltd,MEA003,Corporate Resources and S151,Balance Sheet,Repairs And Mtce Holding A/C,Construction-Repair And Maint
http://thanet.gov.uk/supplierspend,Thanet District Council,07/07/2015,387619,12935.73,,Mears Ltd,MEA003,Corporate Resources and S151,Balance Sheet,Repairs And Mtce Holding A/C,Construction-Repair And Maint
http://thanet.gov.uk/supplierspend,Thanet District Council,07/07/2015,388145,528.00,,Michael Page Int Recruitment Ltd,PAG008,Corporate Resources and S151,Revenue,Services,Human Resources
http://thanet.gov.uk/supplierspend,Thanet District Council,07/07/2015,387584,3910.59,,Molyneux Rose Ltd Cl Acc-I/S M'Gate,MOL002,Operational Services,Revenue,Premises Insurance,Financial Services
http://thanet.gov.uk/supplierspend,Thanet District Council,07/07/2015,387583,3809.86,,Molyneux Rose Ltd Cl Acc-I/S R'Gate,MOL003,Operational Services,Revenue,Premises Insurance,Facilities And Management Serv
http://thanet.gov.uk/supplierspend,Thanet District Council,07/07/2015,387324,582.75,,Morgan Jones Ltd,MOR001,Community Services,Revenue,Agency Staff,Human Resources
http://thanet.gov.uk/supplierspend,Thanet District Council,07/07/2015,387961,582.75,,Morgan Jones Ltd,MOR001,Community Services,Revenue,Agency Staff,Human Resources
http://thanet.gov.uk/supplierspend,Thanet District Council,07/07/2015,387596,320.00,,Mrs K Hooper,HOO004,Chief Executive,Revenue,Services,Consultancy
http://thanet.gov.uk/supplierspend,Thanet District Council,07/07/2015,387600,420.00,,N K F Seymour Electrical Cont,SEY002,Community Services,Revenue,Services,Building Construction Material
http://thanet.gov.uk/supplierspend,Thanet District Council,07/07/2015,388104,5227.42,,National Express Ltd,NAT010,Community Services,Revenue,Services,Agency Payments
http://thanet.gov.uk/supplierspend,Thanet District Council,07/07/2015,386932,264.25,,Neopost Ltd,NEO003,Community Services,Revenue,"Equip, Furniture And Materials",Mail Services
http://thanet.gov.uk/supplierspend,Thanet District Council,07/07/2015,387156,356.79,,Neopost Ltd,NEO003,Community Services,Revenue,"Print, Stat And Gen Off Exps",Mail Services
http://thanet.gov.uk/supplierspend,Thanet District Council,07/07/2015,387448,1000.00,,Northgate Public Services (Uk) Ltd,NOR018,East Kent Shared Services,Revenue,Communications & Computing,ICT
http://thanet.gov.uk/supplierspend,Thanet District Council,07/07/2015,388008,344.69,,O2 (Uk) Ltd,O2U001,Operational Services,Revenue,Communications & Computing,ICT
http://thanet.gov.uk/supplierspend,Thanet District Council,07/07/2015,387424,3839.33,,Oracle Corporation Uk Ltd,ORA001,East Kent Shared Services,Revenue,Communications & Computing,ICT
http://thanet.gov.uk/supplierspend,Thanet District Council,07/07/2015,387609,62150.00,,Padstow Harbour Commissioners,PAD003,Operational Services,Revenue,"Repairs,  Alter & Mtce - Build",Maritime Services
http://thanet.gov.uk/supplierspend,Thanet District Council,07/07/2015,387954,36.25,,Parkeon Limited,PAR063,Community Services,Revenue,"Equip, Furniture And Materials",Street And Traffic Management
http://thanet.gov.uk/supplierspend,Thanet District Council,07/07/2015,387954,792.00,,Parkeon Limited,PAR063,Operational Services,Revenue,"Equip, Furniture And Materials",Street And Traffic Management
http://thanet.gov.uk/supplierspend,Thanet District Council,07/07/2015,341504,2000.00,,Parsons Brinckerhoff,PAR062,Community Services,Revenue,Services,Consultancy
http://thanet.gov.uk/supplierspend,Thanet District Council,07/07/2015,387374,560.00,,Portcullis Gate Automation Limited,POR021,Operational Services,Revenue,"Equip, Furniture And Materials",Maritime Services
http://thanet.gov.uk/supplierspend,Thanet District Council,07/07/2015,387963,387.97,,Premier Paper Group Limited,PRE035,Community Services,Revenue,"Print, Stat And Gen Off Exps",Stationery
http://thanet.gov.uk/supplierspend,Thanet District Council,07/07/2015,386767,365.00,,Profile Security Services Limited,PRO018,Corporate Resources and S151,Revenue,Services,Facilities And Management Serv
http://thanet.gov.uk/supplierspend,Thanet District Council,07/07/2015,387932,1350.00,,R J Broadley Tree Surgery,RJB002,Operational Services,Revenue,Grounds Mtce Costs,Horticultural
http://thanet.gov.uk/supplierspend,Thanet District Council,07/07/2015,386840,1450.00,,Ramboll Uk Limited,RAM043,Corporate Resources and S151,Balance Sheet,Other Land And Buildings-Hra,Facilities And Management Serv
http://thanet.gov.uk/supplierspend,Thanet District Council,07/07/2015,388002,725.00,,Rolec Services Limited,ROL001,Operational Services,Revenue,"Equip, Furniture And Materials",Building Construction Material
http://thanet.gov.uk/supplierspend,Thanet District Council,07/07/2015,387620,900.00,,Sellick Partnership Ltd,SEL011,Community Services,Revenue,Services,Human Resources
http://thanet.gov.uk/supplierspend,Thanet District Council,07/07/2015,387252,78750.00,,Sjg Enterprises Ltd,SJG002,Corporate Resources and S151,Balance Sheet,Other Land And Buildings-Hra,Building Construction Material
http://thanet.gov.uk/supplierspend,Thanet District Council,07/07/2015,388024,98000.00,,Sjg Enterprises Ltd,SJG002,Corporate Resources and S151,Balance Sheet,Other Land And Buildings-Hra,Building Construction Material
http://thanet.gov.uk/supplierspend,Thanet District Council,07/07/2015,388271,59544.19,,Sjg Enterprises Ltd,SJG002,Corporate Resources and S151,Balance Sheet,Other Land And Buildings-Hra,Building Construction Material
http://thanet.gov.uk/supplierspend,Thanet District Council,07/07/2015,387433,1120.00,,Sjr Pm Solutions Limited,SJR001,East Kent Shared Services,Revenue,Services,ICT
http://thanet.gov.uk/supplierspend,Thanet District Council,07/07/2015,385744,692.04,,Southern Electric,SEL007,Operational Services,Revenue,Energy Costs,Utilities
http://thanet.gov.uk/supplierspend,Thanet District Council,07/07/2015,386557,1291.30,,Southern Electric,SEL007,Community Services,Revenue,Energy Costs,Utilities
http://thanet.gov.uk/supplierspend,Thanet District Council,07/07/2015,386558,568.98,,Southern Electric,SEL007,Community Services,Revenue,Energy Costs,Utilities
http://thanet.gov.uk/supplierspend,Thanet District Council,07/07/2015,386571,15798.17,,Southern Electric,SEL007,Community Services,Revenue,Energy Costs,Utilities
http://thanet.gov.uk/supplierspend,Thanet District Council,07/07/2015,387189,248.29,,Southern Electric,SEL007,Operational Services,Revenue,Energy Costs,Utilities
http://thanet.gov.uk/supplierspend,Thanet District Council,07/07/2015,387190,13784.18,,Southern Electric,SEL007,Community Services,Revenue,Energy Costs,Utilities
http://thanet.gov.uk/supplierspend,Thanet District Council,07/07/2015,387202,526.61,,Southern Electric,SEL007,Operational Services,Revenue,Energy Costs,Utilities
http://thanet.gov.uk/supplierspend,Thanet District Council,07/07/2015,387206,1102.12,,Southern Electric,SEL007,Community Services,Revenue,Energy Costs,Utilities
http://thanet.gov.uk/supplierspend,Thanet District Council,07/07/2015,387210,677.63,,Southern Electric,SEL007,Community Services,Revenue,Energy Costs,Utilities
http://thanet.gov.uk/supplierspend,Thanet District Council,07/07/2015,387272,802.77,,Southern Electric,SEL007,Operational Services,Revenue,Energy Costs,Utilities
http://thanet.gov.uk/supplierspend,Thanet District Council,07/07/2015,387352,392.50,,Southern Electric,SEL007,Community Services,Revenue,Energy Costs,Utilities
http://thanet.gov.uk/supplierspend,Thanet District Council,07/07/2015,387363,-692.04,,Southern Electric,SEL007,Operational Services,Revenue,Energy Costs,Utilities
http://thanet.gov.uk/supplierspend,Thanet District Council,07/07/2015,387717,-1291.30,,Southern Electric,SEL007,Community Services,Revenue,Energy Costs,Utilities
http://thanet.gov.uk/supplierspend,Thanet District Council,07/07/2015,387718,-568.98,,Southern Electric,SEL007,Community Services,Revenue,Energy Costs,Utilities
http://thanet.gov.uk/supplierspend,Thanet District Council,07/07/2015,387721,-15798.17,,Southern Electric,SEL007,Community Services,Revenue,Energy Costs,Utilities
http://thanet.gov.uk/supplierspend,Thanet District Council,07/07/2015,387279,776.87,,Southern Water,SWA001,Operational Services,Revenue,Water Services,Utilities
http://thanet.gov.uk/supplierspend,Thanet District Council,07/07/2015,387282,2204.54,,Southern Water,SWA001,Operational Services,Revenue,Water Services,Utilities
http://thanet.gov.uk/supplierspend,Thanet District Council,07/07/2015,387283,593.36,,Southern Water,SWA001,Operational Services,Revenue,Water Services,Utilities
http://thanet.gov.uk/supplierspend,Thanet District Council,07/07/2015,388084,560.80,,Southern Water,SWA001,Operational Services,Revenue,Water Services,Utilities
http://thanet.gov.uk/supplierspend,Thanet District Council,07/07/2015,388088,934.58,,Southern Water,SWA001,Operational Services,Revenue,Water Services,Utilities
http://thanet.gov.uk/supplierspend,Thanet District Council,07/07/2015,387425,51.42,,Tfa Fuel Services Ltd,TFA003,Operational Services,Revenue,Direct Transport Costs,Utilities
http://thanet.gov.uk/supplierspend,Thanet District Council,07/07/2015,387425,567.70,,Tfa Fuel Services Ltd,TFA003,Operational Services,Revenue,"Equip, Furniture And Materials",Utilities
http://thanet.gov.uk/supplierspend,Thanet District Council,07/07/2015,387385,353.70,,Thanet Waste Services Ltd,TWA001,Operational Services,Revenue,Private Contractors,Environmental Services
http://thanet.gov.uk/supplierspend,Thanet District Council,07/07/2015,387607,733.50,,The Bell Brush Company,BEL018,Operational Services,Revenue,"Equip, Furniture And Materials",Cleaning And Janitorial
http://thanet.gov.uk/supplierspend,Thanet District Council,07/07/2015,386898,1791.64,,The Glenwood Hotel,GLE007,Community Services,Revenue,Services,Housing Management
http://thanet.gov.uk/supplierspend,Thanet District Council,07/07/2015,387115,2974.97,,The Glenwood Hotel,GLE007,Community Services,Revenue,Services,Housing Management
http://thanet.gov.uk/supplierspend,Thanet District Council,07/07/2015,387167,2166.66,,The Glenwood Hotel,GLE007,Community Services,Revenue,Services,Housing Management
http://thanet.gov.uk/supplierspend,Thanet District Council,07/07/2015,387168,2849.98,,The Glenwood Hotel,GLE007,Community Services,Revenue,Services,Housing Management
http://thanet.gov.uk/supplierspend,Thanet District Council,07/07/2015,387169,312.49,,The Glenwood Hotel,GLE007,Community Services,Revenue,Services,Housing Management
http://thanet.gov.uk/supplierspend,Thanet District Council,07/07/2015,387402,2495.83,,The Glenwood Hotel,GLE007,Community Services,Revenue,Services,Housing Management
http://thanet.gov.uk/supplierspend,Thanet District Council,07/07/2015,387403,2641.65,,The Glenwood Hotel,GLE007,Community Services,Revenue,Services,Housing Management
http://thanet.gov.uk/supplierspend,Thanet District Council,07/07/2015,388177,6516.92,,The Gpm Partnership Limited,GPM001,Corporate Resources and S151,Balance Sheet,Other Land And Buildings-Hra,Consultancy
http://thanet.gov.uk/supplierspend,Thanet District Council,07/07/2015,388178,6876.92,,The Gpm Partnership Limited,GPM001,Corporate Resources and S151,Balance Sheet,Other Land And Buildings-Hra,Consultancy
http://thanet.gov.uk/supplierspend,Thanet District Council,07/07/2015,387990,3591.00,,Thomson Reuters,THO043,Corporate Resources and S151,Revenue,"Print, Stat And Gen Off Exps",Human Resources
http://thanet.gov.uk/supplierspend,Thanet District Council,07/07/2015,387416,300.00,,Time Inc (Uk) Ltd,TIM008,Operational Services,Revenue,Miscellaneous Expenses,Facilities And Management Serv
http://thanet.gov.uk/supplierspend,Thanet District Council,07/07/2015,387310,1060.00,,Total Merchandise Ltd,TOT012,Community Services,Revenue,Miscellaneous Expenses,Stationery
http://thanet.gov.uk/supplierspend,Thanet District Council,07/07/2015,387396,500.00,,Uplands Engineering Ltd,UPL001,Operational Services,Revenue,"Repairs,  Alter & Mtce - Build",Maritime Services
http://thanet.gov.uk/supplierspend,Thanet District Council,07/07/2015,387375,225.94,,W G Burbridge,BUR016,Operational Services,Revenue,"Equip, Furniture And Materials",Building Construction Material
http://thanet.gov.uk/supplierspend,Thanet District Council,07/07/2015,387432,340.00,,Watling Tyre Service Ltd,WAT003,Operational Services,Revenue,"Equip, Furniture And Materials",Vehicle Management
http://thanet.gov.uk/supplierspend,Thanet District Council,08/07/2015,387577,220.00,,All Sign Solutions Ltd,ALL002,Corporate Resources and S151,Balance Sheet,Plant And Equipment,Building Construction Material
http://thanet.gov.uk/supplierspend,Thanet District Council,08/07/2015,387577,150.00,,All Sign Solutions Ltd,ALL002,Operational Services,Revenue,"Equip, Furniture And Materials",Building Construction Material
http://thanet.gov.uk/supplierspend,Thanet District Council,08/07/2015,387579,220.00,,All Sign Solutions Ltd,ALL002,Operational Services,Revenue,"Equip, Furniture And Materials",Building Construction Material
http://thanet.gov.uk/supplierspend,Thanet District Council,08/07/2015,388531,704.76,,Allstar Business Solutions Ltd,ALL038,Operational Services,Revenue,Direct Transport Costs,Vehicle Management
http://thanet.gov.uk/supplierspend,Thanet District Council,08/07/2015,388181,1050.00,,Alpha Parking Ltd,ALP006,Operational Services,Revenue,"Equip, Furniture And Materials",Human Resources
http://thanet.gov.uk/supplierspend,Thanet District Council,08/07/2015,386789,14160.32,,Ass Of Electoral Administrators,AEA001,Corporate Resources and S151,Revenue,Services,Human Resources
http://thanet.gov.uk/supplierspend,Thanet District Council,08/07/2015,387991,605.00,,Aston Walker,AST008,Community Services,Revenue,Services,Cemetery And Crematorium
http://thanet.gov.uk/supplierspend,Thanet District Council,08/07/2015,387986,485.50,,Bpi Recycled Products,BPI002,Operational Services,Revenue,"Equip, Furniture And Materials",Environmental Services
http://thanet.gov.uk/supplierspend,Thanet District Council,08/07/2015,387415,208.75,,Channel Commercials Plc,CCO001,Operational Services,Revenue,Direct Transport Costs,Vehicle Management
http://thanet.gov.uk/supplierspend,Thanet District Council,08/07/2015,387442,558.82,,Channel Commercials Plc,CCO001,Operational Services,Revenue,Direct Transport Costs,Vehicle Management
http://thanet.gov.uk/supplierspend,Thanet District Council,08/07/2015,388518,600.00,,Cripps Llp,CRI011,Community Services,Revenue,Services,Legal Services
http://thanet.gov.uk/supplierspend,Thanet District Council,08/07/2015,388521,7668.58,,Downfast Demolition & Salvage Ltd,DOW001,Community Services,Revenue,"Repairs,  Alter & Mtce - Build",Building Construction Material
http://thanet.gov.uk/supplierspend,Thanet District Council,08/07/2015,388496,984.40,,Family Mosaic Housing,FAM001,Corporate Resources and S151,Balance Sheet,Capital Exp-Non Council Assets,Housing Management
http://thanet.gov.uk/supplierspend,Thanet District Council,08/07/2015,388128,770.00,,Gulliver'S Truck Hire Limited,GUL001,Operational Services,Revenue,Cont Hire & Operating Lease,Vehicle Management
http://thanet.gov.uk/supplierspend,Thanet District Council,08/07/2015,387983,2150.00,,Harvie Tyres Ltd,HAR033,Operational Services,Revenue,Direct Transport Costs,Vehicle Management
http://thanet.gov.uk/supplierspend,Thanet District Council,08/07/2015,388539,57120.00,,Haynes Of Maidstone Ltd,HAY008,Corporate Resources and S151,Balance Sheet,Plant And Equipment,Vehicle Management
http://thanet.gov.uk/supplierspend,Thanet District Council,08/07/2015,388540,-17750.00,,Haynes Of Maidstone Ltd,HAY008,Corporate Resources and S151,Balance Sheet,Plant And Equipment,Vehicle Management
http://thanet.gov.uk/supplierspend,Thanet District Council,08/07/2015,388541,17750.00,,Haynes Of Maidstone Ltd,HAY008,Corporate Resources and S151,Balance Sheet,Plant And Equipment,Vehicle Management
http://thanet.gov.uk/supplierspend,Thanet District Council,08/07/2015,387970,840.98,,Hilton Cabinet Co Ltd,HIL002,Operational Services,Revenue,"Equip, Furniture And Materials",Furniture And Soft Furnishings
http://thanet.gov.uk/supplierspend,Thanet District Council,08/07/2015,387938,2003.12,,Hr Go Recruitment Ltd,HRG002,Operational Services,Revenue,Agency Staff,Human Resources
http://thanet.gov.uk/supplierspend,Thanet District Council,08/07/2015,387939,566.70,,Hr Go Recruitment Ltd,HRG002,Operational Services,Revenue,Agency Staff,Human Resources
http://thanet.gov.uk/supplierspend,Thanet District Council,08/07/2015,387940,1365.22,,Hr Go Recruitment Ltd,HRG002,Operational Services,Revenue,Agency Staff,Human Resources
http://thanet.gov.uk/supplierspend,Thanet District Council,08/07/2015,387419,2944.21,,Hydraquip Hose & Hydraulics,HYD003,Operational Services,Revenue,Direct Transport Costs,Vehicle Management
http://thanet.gov.uk/supplierspend,Thanet District Council,08/07/2015,388495,266.35,,Hydraquip Hose & Hydraulics,HYD003,Operational Services,Revenue,Direct Transport Costs,Vehicle Management
http://thanet.gov.uk/supplierspend,Thanet District Council,08/07/2015,388048,448.63,,L W Burt & Son Ltd,BUR027,Community Services,Revenue,"Repairs,  Alter & Mtce - Build",Construction-Repair And Maint
http://thanet.gov.uk/supplierspend,Thanet District Council,08/07/2015,388049,399.68,,L W Burt & Son Ltd,BUR027,Community Services,Revenue,"Repairs,  Alter & Mtce - Build",Construction-Repair And Maint
http://thanet.gov.uk/supplierspend,Thanet District Council,08/07/2015,388050,563.61,,L W Burt & Son Ltd,BUR027,Community Services,Revenue,"Repairs,  Alter & Mtce - Build",Construction-Repair And Maint
http://thanet.gov.uk/supplierspend,Thanet District Council,08/07/2015,386834,541.75,,Mears Ltd,MEA003,Community Services,Revenue,"Repairs,  Alter & Mtce - Build",Construction-Repair And Maint
http://thanet.gov.uk/supplierspend,Thanet District Council,08/07/2015,388126,1260.00,,Michael Page Int Recruitment Ltd,PAG008,Corporate Resources and S151,Revenue,Services,Human Resources
http://thanet.gov.uk/supplierspend,Thanet District Council,08/07/2015,388119,520.47,,Ocs Group Uk Ltd T/A Fountains,OCS005,Operational Services,Revenue,Fixtures & Fittings,Cleaning And Janitorial
http://thanet.gov.uk/supplierspend,Thanet District Council,08/07/2015,388123,686.53,,Ocs Group Uk Ltd T/A Fountains,OCS005,Operational Services,Revenue,Fixtures & Fittings,Cleaning And Janitorial
http://thanet.gov.uk/supplierspend,Thanet District Council,08/07/2015,388124,429.49,,Ocs Group Uk Ltd T/A Fountains,OCS005,Operational Services,Revenue,Fixtures & Fittings,Cleaning And Janitorial
http://thanet.gov.uk/supplierspend,Thanet District Council,08/07/2015,388130,692.85,,Pg Merlin,PGM001,Operational Services,Revenue,Direct Transport Costs,Building Construction Material
http://thanet.gov.uk/supplierspend,Thanet District Council,08/07/2015,388506,25000.00,,Ramsgate Town Team,RAM041,Community Services,Revenue,Grants & Subscriptions,Grants
http://thanet.gov.uk/supplierspend,Thanet District Council,08/07/2015,388524,4455.00,,Red Snapper Learning Ltd,RED019,Community Services,Revenue,Services,Human Resources
http://thanet.gov.uk/supplierspend,Thanet District Council,08/07/2015,384474,7872.24,,Royal Mail,ROY004,Corporate Resources and S151,Revenue,Communications & Computing,Mail Services
http://thanet.gov.uk/supplierspend,Thanet District Council,08/07/2015,387107,5573.30,,Royal Mail,ROY004,Corporate Resources and S151,Revenue,Communications & Computing,Mail Services
http://thanet.gov.uk/supplierspend,Thanet District Council,08/07/2015,387118,374.85,,Sellick Partnership Ltd,SEL011,Corporate Resources and S151,Revenue,Agency Staff,Human Resources
http://thanet.gov.uk/supplierspend,Thanet District Council,08/07/2015,387228,825.30,,Sellick Partnership Ltd,SEL011,Corporate Resources and S151,Revenue,Agency Staff,Human Resources
http://thanet.gov.uk/supplierspend,Thanet District Council,08/07/2015,387286,2195.57,,Sellick Partnership Ltd,SEL011,Corporate Resources and S151,Revenue,Services,Human Resources
http://thanet.gov.uk/supplierspend,Thanet District Council,08/07/2015,387429,1991.25,,Sellick Partnership Ltd,SEL011,Corporate Resources and S151,Revenue,Agency Staff,Human Resources
http://thanet.gov.uk/supplierspend,Thanet District Council,08/07/2015,387591,889.35,,Sellick Partnership Ltd,SEL011,Corporate Resources and S151,Revenue,Agency Staff,Human Resources
http://thanet.gov.uk/supplierspend,Thanet District Council,08/07/2015,388497,8170.00,,South East Adaptations Limited,SOU026,Corporate Resources and S151,Balance Sheet,Capital Exp-Non Council Assets,Grants
http://thanet.gov.uk/supplierspend,Thanet District Council,08/07/2015,379701,318.28,,Southern Electric,SEL007,Operational Services,Revenue,Energy Costs,Utilities
http://thanet.gov.uk/supplierspend,Thanet District Council,08/07/2015,386895,-318.28,,Southern Electric,SEL007,Operational Services,Revenue,Energy Costs,Utilities
http://thanet.gov.uk/supplierspend,Thanet District Council,08/07/2015,387377,927.52,,Sparshatts Of Kent Ltd,SPA008,Operational Services,Revenue,Direct Transport Costs,Vehicle Management
http://thanet.gov.uk/supplierspend,Thanet District Council,08/07/2015,387106,555.00,,St Lawrence College Enterprises Ltd,STL008,Corporate Resources and S151,Revenue,Rents,Arts And Leisure Services
http://thanet.gov.uk/supplierspend,Thanet District Council,08/07/2015,387446,1350.00,,Thanet Nursery Project Limited,TNU001,Community Services,Revenue,Rents,Facilities And Management Serv
http://thanet.gov.uk/supplierspend,Thanet District Council,08/07/2015,388030,794.00,,Westbury Industrial Supplies Ltd,WES042,Operational Services,Revenue,"Equip, Furniture And Materials",Clothing
http://thanet.gov.uk/supplierspend,Thanet District Council,08/07/2015,388605,34827.32,,Your Leisure Kent Limited,YOU016,Corporate Resources and S151,Revenue,Rents,Arts And Leisure Services
http://thanet.gov.uk/supplierspend,Thanet District Council,14/07/2015,388052,473.00,,All Access Ltd,ALL031,Community Services,Revenue,Services,Building Construction Material
http://thanet.gov.uk/supplierspend,Thanet District Council,14/07/2015,388685,567.75,,Allstar Business Solutions Ltd,ALL038,Operational Services,Revenue,Direct Transport Costs,Vehicle Management
http://thanet.gov.uk/supplierspend,Thanet District Council,14/07/2015,388581,783.00,,Amenity Horticultural Serv Ltd,AME001,Operational Services,Revenue,"Equip, Furniture And Materials",Horticultural
http://thanet.gov.uk/supplierspend,Thanet District Council,14/07/2015,388582,324.50,,Amenity Horticultural Serv Ltd,AME001,Operational Services,Revenue,"Equip, Furniture And Materials",Horticultural
http://thanet.gov.uk/supplierspend,Thanet District Council,14/07/2015,388166,352.50,,Andy Morris,MOR028,Community Services,Revenue,Services,Arts And Leisure Services
http://thanet.gov.uk/supplierspend,Thanet District Council,14/07/2015,388169,405.00,,Andy Morris,MOR028,Community Services,Revenue,Services,Arts And Leisure Services
http://thanet.gov.uk/supplierspend,Thanet District Council,14/07/2015,388038,9500.00,,Ass For Public Service Excellence,ASS013,Operational Services,Revenue,Services,Human Resources
http://thanet.gov.uk/supplierspend,Thanet District Council,14/07/2015,388704,7850.00,,B P Blasting Solutions Limited,BPB001,Corporate Resources and S151,Balance Sheet,Plant And Equipment,Maritime Services
http://thanet.gov.uk/supplierspend,Thanet District Council,14/07/2015,388143,668.50,,Beckwith Consulting Limited,BEC001,Corporate Resources and S151,Revenue,Training,Human Resources
http://thanet.gov.uk/supplierspend,Thanet District Council,14/07/2015,388526,857.00,,British Parking Association,BPA001,Operational Services,Revenue,Grants & Subscriptions,Human Resources
http://thanet.gov.uk/supplierspend,Thanet District Council,14/07/2015,387317,900.00,,Centre For Public Scrutiny Ltd,CEN015,Corporate Resources and S151,Revenue,Training,Human Resources
http://thanet.gov.uk/supplierspend,Thanet District Council,14/07/2015,388295,410.11,,Cobalt Telephone Technologies Ltd,COB002,Operational Services,Revenue,Services,ICT
http://thanet.gov.uk/supplierspend,Thanet District Council,14/07/2015,388593,1870.50,,Cobalt Telephone Technologies Ltd,COB002,Operational Services,Revenue,Services,ICT
http://thanet.gov.uk/supplierspend,Thanet District Council,14/07/2015,388499,514.80,,Craig & Parsons Limited,CRA016,Operational Services,Revenue,"Equip, Furniture And Materials",Stationery
http://thanet.gov.uk/supplierspend,Thanet District Council,14/07/2015,388790,2000.00,,Cripps Llp,CRI011,Corporate Resources and S151,Balance Sheet,Other Land And Buildings-Hra,Legal Services
http://thanet.gov.uk/supplierspend,Thanet District Council,14/07/2015,387593,476.00,,Daniels Healthcare Limited,DAN014,Operational Services,Revenue,"Equip, Furniture And Materials",Healthcare
http://thanet.gov.uk/supplierspend,Thanet District Council,14/07/2015,388688,500.00,,David Forsdick Qc,FOR020,Corporate Resources and S151,Balance Sheet,Other Land And Buildings-Hra,Legal Services
http://thanet.gov.uk/supplierspend,Thanet District Council,14/07/2015,388519,1100.00,,Disclosure And Barring Service,DIS017,Community Services,Revenue,"Equip, Furniture And Materials",Human Resources
http://thanet.gov.uk/supplierspend,Thanet District Council,14/07/2015,387966,397.20,,Eagle Envelopes Ltd,EAG001,East Kent Shared Services,Revenue,"Print, Stat And Gen Off Exps",Stationery
http://thanet.gov.uk/supplierspend,Thanet District Council,14/07/2015,387943,500.00,,Envirocure Ltd,ENV011,Operational Services,Revenue,"Repairs,  Alter & Mtce - Build",Facilities And Management Serv
http://thanet.gov.uk/supplierspend,Thanet District Council,14/07/2015,388572,300.00,,Epos Group (Kent),EPO001,Community Services,Revenue,"Equip, Furniture And Materials",Stationery
http://thanet.gov.uk/supplierspend,Thanet District Council,14/07/2015,386967,354.45,,Eyeball Signs,EYE002,Community Services,Revenue,Grants & Subscriptions,Facilities And Management Serv
http://thanet.gov.uk/supplierspend,Thanet District Council,14/07/2015,388070,270.00,,Florence Court Hotel,FLO003,Community Services,Revenue,Services,Housing Management
http://thanet.gov.uk/supplierspend,Thanet District Council,14/07/2015,388071,270.00,,Florence Court Hotel,FLO003,Community Services,Revenue,Services,Housing Management
http://thanet.gov.uk/supplierspend,Thanet District Council,14/07/2015,388072,950.00,,Florence Court Hotel,FLO003,Community Services,Revenue,Services,Housing Management
http://thanet.gov.uk/supplierspend,Thanet District Council,14/07/2015,388073,800.00,,Florence Court Hotel,FLO003,Community Services,Revenue,Services,Housing Management
http://thanet.gov.uk/supplierspend,Thanet District Council,14/07/2015,388074,840.00,,Florence Court Hotel,FLO003,Community Services,Revenue,Services,Housing Management
http://thanet.gov.uk/supplierspend,Thanet District Council,14/07/2015,388075,630.00,,Florence Court Hotel,FLO003,Community Services,Revenue,Services,Housing Management
http://thanet.gov.uk/supplierspend,Thanet District Council,14/07/2015,388076,780.00,,Florence Court Hotel,FLO003,Community Services,Revenue,Services,Housing Management
http://thanet.gov.uk/supplierspend,Thanet District Council,14/07/2015,388077,900.00,,Florence Court Hotel,FLO003,Community Services,Revenue,Services,Housing Management
http://thanet.gov.uk/supplierspend,Thanet District Council,14/07/2015,388078,900.00,,Florence Court Hotel,FLO003,Community Services,Revenue,Services,Housing Management
http://thanet.gov.uk/supplierspend,Thanet District Council,14/07/2015,388079,900.00,,Florence Court Hotel,FLO003,Community Services,Revenue,Services,Housing Management
http://thanet.gov.uk/supplierspend,Thanet District Council,14/07/2015,388080,900.00,,Florence Court Hotel,FLO003,Community Services,Revenue,Services,Housing Management
http://thanet.gov.uk/supplierspend,Thanet District Council,14/07/2015,388081,540.00,,Florence Court Hotel,FLO003,Community Services,Revenue,Services,Housing Management
http://thanet.gov.uk/supplierspend,Thanet District Council,14/07/2015,388101,259.00,,Fuel Oils Kent,FUE001,Operational Services,Revenue,"Equip, Furniture And Materials",Utilities
http://thanet.gov.uk/supplierspend,Thanet District Council,14/07/2015,388529,770.00,,Gulliver'S Truck Hire Limited,GUL001,Operational Services,Revenue,Cont Hire & Operating Lease,Vehicle Management
http://thanet.gov.uk/supplierspend,Thanet District Council,14/07/2015,388102,1160.00,,Hags-Smp Limited,HAG004,Operational Services,Revenue,"Repairs,  Alter & Mtce - Build",Sports Playground Equipment
http://thanet.gov.uk/supplierspend,Thanet District Council,14/07/2015,388103,300.00,,Hags-Smp Limited,HAG004,Operational Services,Revenue,"Repairs,  Alter & Mtce - Build",Sports Playground Equipment
http://thanet.gov.uk/supplierspend,Thanet District Council,14/07/2015,387747,665.70,,Hammicks Legal Bookshop,HAM007,Corporate Resources and S151,Revenue,"Print, Stat And Gen Off Exps",Stationery
http://thanet.gov.uk/supplierspend,Thanet District Council,14/07/2015,388747,385.00,,Happy Dolphin Guest House,HAP004,Community Services,Revenue,Services,Housing Management
http://thanet.gov.uk/supplierspend,Thanet District Council,14/07/2015,388567,293.50,,Heidelberg Graphic Equipment Ltd,HEI002,Community Services,Revenue,"Equip, Furniture And Materials",Facilities And Management Serv
http://thanet.gov.uk/supplierspend,Thanet District Council,14/07/2015,387587,1219.44,,Hi Way Services Ltd,HIW002,Community Services,Revenue,"Equip, Furniture And Materials",Highway Equipment And Material
http://thanet.gov.uk/supplierspend,Thanet District Council,14/07/2015,387589,633.20,,Hi Way Services Ltd,HIW002,Operational Services,Revenue,"Repairs,  Alter & Mtce - Build",Highway Equipment And Material
http://thanet.gov.uk/supplierspend,Thanet District Council,14/07/2015,388709,1446.22,,Holbrook Revell Electrical Ltd,HOL015,Corporate Resources and S151,Balance Sheet,Investment Property For Lease,Building Construction Material
http://thanet.gov.uk/supplierspend,Thanet District Council,14/07/2015,387934,4201.67,,Hr Go Recruitment Ltd,HRG002,Operational Services,Revenue,Agency Staff,Human Resources
http://thanet.gov.uk/supplierspend,Thanet District Council,14/07/2015,387935,9132.21,,Hr Go Recruitment Ltd,HRG002,Operational Services,Revenue,Agency Staff,Human Resources
http://thanet.gov.uk/supplierspend,Thanet District Council,14/07/2015,387941,1060.50,,Hr Go Recruitment Ltd,HRG002,Operational Services,Revenue,Agency Staff,Human Resources
http://thanet.gov.uk/supplierspend,Thanet District Council,14/07/2015,388026,445.00,,Institute Of Cemetery & Crem Mang,INS015,Operational Services,Revenue,Grants & Subscriptions,Cemetery And Crematorium
http://thanet.gov.uk/supplierspend,Thanet District Council,14/07/2015,388663,514.72,,J & J Maintenance Services Ltd,JJM001,Operational Services,Revenue,"Equip, Furniture And Materials",Cemetery And Crematorium
http://thanet.gov.uk/supplierspend,Thanet District Council,14/07/2015,388750,336750.99,,J Breheny Contractors Ltd,BRE002,Corporate Resources and S151,Balance Sheet,Infrastructure,Construction-Repair And Maint
http://thanet.gov.uk/supplierspend,Thanet District Council,14/07/2015,388651,465.00,,Jacqueline Reid,REI005,Community Services,Revenue,Services,Legal Services
http://thanet.gov.uk/supplierspend,Thanet District Council,14/07/2015,388696,606.70,,John Gale,GAL001,Corporate Resources and S151,Balance Sheet,Capital Exp-Non Council Assets,Grants
http://thanet.gov.uk/supplierspend,Thanet District Council,14/07/2015,388603,690.00,,John Reeve (Plant Hire) Ltd,REE013,Operational Services,Revenue,Cont Hire & Operating Lease,Vehicle Management
http://thanet.gov.uk/supplierspend,Thanet District Council,14/07/2015,388570,1015.00,,Kendall Cars Ltd,KEN041,Operational Services,Revenue,Cont Hire & Operating Lease,Vehicle Management
http://thanet.gov.uk/supplierspend,Thanet District Council,14/07/2015,388571,1015.00,,Kendall Cars Ltd,KEN041,Operational Services,Revenue,Cont Hire & Operating Lease,Vehicle Management
http://thanet.gov.uk/supplierspend,Thanet District Council,14/07/2015,388772,665.40,,Kent County Council,KCC002,East Kent Shared Services,Revenue,Training,Various Cats - Public Sector
http://thanet.gov.uk/supplierspend,Thanet District Council,14/07/2015,387949,28089.75,,Kent County Council (Kcs),KCC003,Operational Services,Revenue,Direct Transport Costs,Facilities And Management Serv
http://thanet.gov.uk/supplierspend,Thanet District Council,14/07/2015,388523,360.00,,Kent Forklift Training Limited,KFO003,Operational Services,Revenue,Training,Human Resources
http://thanet.gov.uk/supplierspend,Thanet District Council,14/07/2015,388272,2080.00,,Kudos Architecture&Surveying Limited,KUD002,Corporate Resources and S151,Balance Sheet,Other Land And Buildings-Hra,Consultancy
http://thanet.gov.uk/supplierspend,Thanet District Council,14/07/2015,388127,500.00,,L G G Limited,LGG001,Community Services,Revenue,Expenses,Human Resources
http://thanet.gov.uk/supplierspend,Thanet District Council,14/07/2015,387592,26205.32,,Lorica Insurance Brokers Limited,LOR005,Corporate Resources and S151,Balance Sheet,Other Land And Buildings-Hra,Financial Services
http://thanet.gov.uk/supplierspend,Thanet District Council,14/07/2015,388133,399.40,,Lyreco Uk Limited,LYR001,Community Services,Revenue,"Print, Stat And Gen Off Exps",Stationery
http://thanet.gov.uk/supplierspend,Thanet District Council,14/07/2015,387981,640.00,,M D Electrics,MDE001,Community Services,Revenue,"Repairs,  Alter & Mtce - Build",Building Construction Material
http://thanet.gov.uk/supplierspend,Thanet District Council,14/07/2015,387982,320.00,,M D Electrics,MDE001,Community Services,Revenue,"Repairs,  Alter & Mtce - Build",Building Construction Material
http://thanet.gov.uk/supplierspend,Thanet District Council,14/07/2015,387947,295.98,,Mears Ltd,MEA003,Community Services,Revenue,"Repairs,  Alter & Mtce - Build",Construction-Repair And Maint
http://thanet.gov.uk/supplierspend,Thanet District Council,14/07/2015,388140,2065.39,,Mears Ltd,MEA003,Community Services,Revenue,"Repairs,  Alter & Mtce - Build",Construction-Repair And Maint
http://thanet.gov.uk/supplierspend,Thanet District Council,14/07/2015,388141,416.28,,Mears Ltd,MEA003,Community Services,Revenue,"Repairs,  Alter & Mtce - Build",Construction-Repair And Maint
http://thanet.gov.uk/supplierspend,Thanet District Council,14/07/2015,388141,902.54,,Mears Ltd,MEA003,Operational Services,Revenue,"Repairs,  Alter & Mtce - Build",Construction-Repair And Maint
http://thanet.gov.uk/supplierspend,Thanet District Council,14/07/2015,388172,1973.65,,Mears Ltd,MEA003,Community Services,Revenue,"Repairs,  Alter & Mtce - Build",Construction-Repair And Maint
http://thanet.gov.uk/supplierspend,Thanet District Council,14/07/2015,388536,476.47,,Mears Ltd,MEA003,Community Services,Revenue,"Repairs,  Alter & Mtce - Build",Construction-Repair And Maint
http://thanet.gov.uk/supplierspend,Thanet District Council,14/07/2015,388514,562.50,,Meter Macs Ltd,MET014,Operational Services,Revenue,"Repairs,  Alter & Mtce - Build",Street And Traffic Management
http://thanet.gov.uk/supplierspend,Thanet District Council,14/07/2015,388055,578.81,,Morgan Jones Ltd,MOR001,Community Services,Revenue,Agency Staff,Human Resources
http://thanet.gov.uk/supplierspend,Thanet District Council,14/07/2015,388600,622.50,,Mr Darren Osborne,OSB008,Community Services,Revenue,Cleaning & Domestic Supplies,Cleaning And Janitorial
http://thanet.gov.uk/supplierspend,Thanet District Council,14/07/2015,388600,30.00,,Mr Darren Osborne,OSB008,Operational Services,Revenue,Cleaning & Domestic Supplies,Cleaning And Janitorial
http://thanet.gov.uk/supplierspend,Thanet District Council,14/07/2015,388689,500.00,,Mr Paul Tapsell,TAP002,Community Services,Revenue,Services,Legal Services
http://thanet.gov.uk/supplierspend,Thanet District Council,14/07/2015,388171,800.00,,Nagels Uk Ltd,NAG001,Operational Services,Revenue,"Print, Stat And Gen Off Exps",Facilities And Management Serv
http://thanet.gov.uk/supplierspend,Thanet District Council,14/07/2015,388697,6067.00,,Northwood Builders,NOR002,Corporate Resources and S151,Balance Sheet,Capital Exp-Non Council Assets,Grants
http://thanet.gov.uk/supplierspend,Thanet District Council,14/07/2015,388122,17698.16,,Ocs Group Uk Ltd T/A Fountains,OCS005,Operational Services,Revenue,Cleaning & Domestic Supplies,Cleaning And Janitorial
http://thanet.gov.uk/supplierspend,Thanet District Council,14/07/2015,388139,810.00,,Profile Security Services Limited,PRO018,Operational Services,Revenue,Services,Facilities And Management Serv
http://thanet.gov.uk/supplierspend,Thanet District Council,14/07/2015,387969,2296.67,,Rigby Taylor Ltd,RIG002,Operational Services,Revenue,"Equip, Furniture And Materials",Horticultural
http://thanet.gov.uk/supplierspend,Thanet District Council,14/07/2015,388215,300.00,,Sarah Shepherd,SHE022,Community Services,Revenue,"Print, Stat And Gen Off Exps",Facilities And Management Serv
http://thanet.gov.uk/supplierspend,Thanet District Council,14/07/2015,388594,1043.97,,Sba Ltd,SBA001,Operational Services,Revenue,"Clothes, Uniforms & Laundry",Clothing
http://thanet.gov.uk/supplierspend,Thanet District Council,14/07/2015,388595,219.70,,Sba Ltd,SBA001,Operational Services,Revenue,"Clothes, Uniforms & Laundry",Clothing
http://thanet.gov.uk/supplierspend,Thanet District Council,14/07/2015,388602,222.99,,Sba Ltd,SBA001,Operational Services,Revenue,"Clothes, Uniforms & Laundry",Clothing
http://thanet.gov.uk/supplierspend,Thanet District Council,14/07/2015,388223,900.00,,Sellick Partnership Ltd,SEL011,Community Services,Revenue,Services,Human Resources
http://thanet.gov.uk/supplierspend,Thanet District Council,14/07/2015,388592,250.30,,Serco Ltd,SER002,Operational Services,Revenue,"Repairs,  Alter & Mtce - Build",Building Construction Material
http://thanet.gov.uk/supplierspend,Thanet District Council,14/07/2015,388542,696.00,,Skatepharm Limited,SKA001,Community Services,Revenue,Services,Arts And Leisure Services
http://thanet.gov.uk/supplierspend,Thanet District Council,14/07/2015,388691,375.00,,Solace In Business Ltd,SOL003,Corporate Resources and S151,Revenue,Services,Consultancy
http://thanet.gov.uk/supplierspend,Thanet District Council,14/07/2015,388151,1474.06,,Southern Electric,SEL007,Community Services,Revenue,Energy Costs,Utilities
http://thanet.gov.uk/supplierspend,Thanet District Council,14/07/2015,388359,908.30,,Southern Water,SWA001,Operational Services,Revenue,Water Services,Utilities
http://thanet.gov.uk/supplierspend,Thanet District Council,14/07/2015,388545,353.36,,Southern Water,SWA001,Operational Services,Revenue,Water Services,Utilities
http://thanet.gov.uk/supplierspend,Thanet District Council,14/07/2015,388546,-1526.76,,Southern Water,SWA001,Operational Services,Revenue,Water Services,Utilities
http://thanet.gov.uk/supplierspend,Thanet District Council,14/07/2015,388491,274.78,,Spaldings  Ltd,SPA006,Operational Services,Revenue,"Equip, Furniture And Materials",Horticultural
http://thanet.gov.uk/supplierspend,Thanet District Council,14/07/2015,387972,702.00,,Sparshatts Of Kent Ltd,SPA008,Operational Services,Revenue,Direct Transport Costs,Vehicle Management
http://thanet.gov.uk/supplierspend,Thanet District Council,14/07/2015,388588,240.30,,Sparshatts Of Kent Ltd,SPA008,Operational Services,Revenue,Direct Transport Costs,Vehicle Management
http://thanet.gov.uk/supplierspend,Thanet District Council,14/07/2015,388589,1199.61,,Sparshatts Of Kent Ltd,SPA008,Operational Services,Revenue,Direct Transport Costs,Vehicle Management
http://thanet.gov.uk/supplierspend,Thanet District Council,14/07/2015,388596,1388.00,,Stonaco Fabrications Ltd,STO002,Community Services,Revenue,"Repairs,  Alter & Mtce - Build",Construction-Repair And Maint
http://thanet.gov.uk/supplierspend,Thanet District Council,14/07/2015,388551,262.50,,Straight Manufacturing Limited,STR038,Operational Services,Revenue,"Equip, Furniture And Materials",Environmental Services
http://thanet.gov.uk/supplierspend,Thanet District Council,14/07/2015,388552,680.00,,Straight Manufacturing Limited,STR038,Operational Services,Revenue,"Equip, Furniture And Materials",Environmental Services
http://thanet.gov.uk/supplierspend,Thanet District Council,14/07/2015,388693,1000.00,,Thanet Roadrunners Athletics Club,THA010,Community Services,Revenue,Grants & Subscriptions,Grants
http://thanet.gov.uk/supplierspend,Thanet District Council,14/07/2015,388584,312.00,,Thanet Safe Limited,TSA004,Community Services,Revenue,"Equip, Furniture And Materials",Facilities And Management Serv
http://thanet.gov.uk/supplierspend,Thanet District Council,14/07/2015,387993,2662.48,,The Glenwood Hotel,GLE007,Community Services,Revenue,Services,Housing Management
http://thanet.gov.uk/supplierspend,Thanet District Council,14/07/2015,387994,2495.83,,The Glenwood Hotel,GLE007,Community Services,Revenue,Services,Housing Management
http://thanet.gov.uk/supplierspend,Thanet District Council,14/07/2015,387995,437.49,,The Glenwood Hotel,GLE007,Community Services,Revenue,Services,Housing Management
http://thanet.gov.uk/supplierspend,Thanet District Council,14/07/2015,388115,955.00,,Thomson Reuters,THO043,Community Services,Revenue,"Print, Stat And Gen Off Exps",Human Resources
http://thanet.gov.uk/supplierspend,Thanet District Council,14/07/2015,388311,825.00,,Thomson Reuters,THO043,Community Services,Revenue,Grants & Subscriptions,Human Resources
http://thanet.gov.uk/supplierspend,Thanet District Council,14/07/2015,388311,2899.00,,Thomson Reuters,THO043,Community Services,Revenue,"Print, Stat And Gen Off Exps",Human Resources
http://thanet.gov.uk/supplierspend,Thanet District Council,14/07/2015,387971,411.00,,Timeplan Fuel Solutions Ltd,TIM007,Operational Services,Revenue,Training,Vehicle Management
http://thanet.gov.uk/supplierspend,Thanet District Council,14/07/2015,388587,825.00,,Vale Engineering (York) Limited,VAL008,Operational Services,Revenue,"Equip, Furniture And Materials",Horticultural
http://thanet.gov.uk/supplierspend,Thanet District Council,14/07/2015,388590,638.00,,Viatec (Uk) Limited,VIA002,Operational Services,Revenue,"Equip, Furniture And Materials",Construction-Repair And Maint
http://thanet.gov.uk/supplierspend,Thanet District Council,14/07/2015,388654,269.28,,Viridor Waste Management Ltd,VIR003,Community Services,Revenue,Private Contractors,Environmental Services
http://thanet.gov.uk/supplierspend,Thanet District Council,14/07/2015,388004,1800.00,,Weir & Carmichael Limited,WEI004,Operational Services,Revenue,"Equip, Furniture And Materials",Environmental Services
http://thanet.gov.uk/supplierspend,Thanet District Council,14/07/2015,388136,2250.00,,Wessex Economics Limited,WES051,Community Services,Revenue,Services,Consultancy
http://thanet.gov.uk/supplierspend,Thanet District Council,14/07/2015,387427,131717.50,,Wgh Ltd,WGH001,Corporate Resources and S151,Balance Sheet,Other Land And Buildings-Hra,Consultancy
http://thanet.gov.uk/supplierspend,Thanet District Council,15/07/2015,387257,1140.36,,Albion Fencing&Construction Kent Ltd,ALB005,Operational Services,Revenue,"Repairs,  Alter & Mtce - Build",Building Construction Material
http://thanet.gov.uk/supplierspend,Thanet District Council,15/07/2015,387258,4004.00,,Albion Fencing&Construction Kent Ltd,ALB005,Operational Services,Revenue,"Repairs,  Alter & Mtce - Build",Building Construction Material
http://thanet.gov.uk/supplierspend,Thanet District Council,15/07/2015,387259,1455.92,,Albion Fencing&Construction Kent Ltd,ALB005,Operational Services,Revenue,"Repairs,  Alter & Mtce - Build",Building Construction Material
http://thanet.gov.uk/supplierspend,Thanet District Council,15/07/2015,388184,-1753.53,,Kent County Council (Kcs),KCC003,Community Services,Revenue,Energy Costs,Facilities And Management Serv
http://thanet.gov.uk/supplierspend,Thanet District Council,15/07/2015,388189,-933.85,,Kent County Council (Kcs),KCC003,Operational Services,Revenue,Energy Costs,Facilities And Management Serv
http://thanet.gov.uk/supplierspend,Thanet District Council,15/07/2015,388191,-2429.86,,Kent County Council (Kcs),KCC003,Operational Services,Revenue,Energy Costs,Facilities And Management Serv
http://thanet.gov.uk/supplierspend,Thanet District Council,15/07/2015,388192,-357.13,,Kent County Council (Kcs),KCC003,Operational Services,Revenue,Energy Costs,Facilities And Management Serv
http://thanet.gov.uk/supplierspend,Thanet District Council,15/07/2015,388193,-395.03,,Kent County Council (Kcs),KCC003,Operational Services,Revenue,Energy Costs,Facilities And Management Serv
http://thanet.gov.uk/supplierspend,Thanet District Council,15/07/2015,388194,-337.71,,Kent County Council (Kcs),KCC003,Operational Services,Revenue,Energy Costs,Facilities And Management Serv
http://thanet.gov.uk/supplierspend,Thanet District Council,15/07/2015,388195,-313.07,,Kent County Council (Kcs),KCC003,Operational Services,Revenue,Energy Costs,Facilities And Management Serv
http://thanet.gov.uk/supplierspend,Thanet District Council,15/07/2015,388197,-821.03,,Kent County Council (Kcs),KCC003,Community Services,Revenue,Energy Costs,Facilities And Management Serv
http://thanet.gov.uk/supplierspend,Thanet District Council,15/07/2015,388198,-310.60,,Kent County Council (Kcs),KCC003,Operational Services,Revenue,Energy Costs,Facilities And Management Serv
http://thanet.gov.uk/supplierspend,Thanet District Council,15/07/2015,388199,-567.80,,Kent County Council (Kcs),KCC003,Community Services,Revenue,Energy Costs,Facilities And Management Serv
http://thanet.gov.uk/supplierspend,Thanet District Council,15/07/2015,388202,-581.09,,Kent County Council (Kcs),KCC003,Community Services,Revenue,Energy Costs,Facilities And Management Serv
http://thanet.gov.uk/supplierspend,Thanet District Council,15/07/2015,388203,-360.96,,Kent County Council (Kcs),KCC003,Operational Services,Revenue,Energy Costs,Facilities And Management Serv
http://thanet.gov.uk/supplierspend,Thanet District Council,15/07/2015,388204,-789.68,,Kent County Council (Kcs),KCC003,Operational Services,Revenue,Energy Costs,Facilities And Management Serv
http://thanet.gov.uk/supplierspend,Thanet District Council,15/07/2015,388756,5208.25,,Kent County Council (Kcs),KCC003,Community Services,Revenue,Energy Costs,Facilities And Management Serv
http://thanet.gov.uk/supplierspend,Thanet District Council,15/07/2015,388757,5150.69,,Kent County Council (Kcs),KCC003,Operational Services,Revenue,Energy Costs,Facilities And Management Serv
http://thanet.gov.uk/supplierspend,Thanet District Council,15/07/2015,388758,1779.62,,Kent County Council (Kcs),KCC003,Operational Services,Revenue,Energy Costs,Facilities And Management Serv
http://thanet.gov.uk/supplierspend,Thanet District Council,15/07/2015,389053,7500.00,,Lambert Smith Hampton Group Ltd,LAM012,Community Services,Revenue,Services,Construction-Repair And Maint
http://thanet.gov.uk/supplierspend,Thanet District Council,15/07/2015,388487,2693.14,,Level 3 Communications (Uk) Ltd,LEV005,Corporate Resources and S151,Balance Sheet,Telephone Holding Account,Ict
http://thanet.gov.uk/supplierspend,Thanet District Council,15/07/2015,389057,325.00,,Npower Yorkshire Limited,NPO004,Community Services,Revenue,Energy Costs,Utilities
http://thanet.gov.uk/supplierspend,Thanet District Council,15/07/2015,387248,126000.00,,Sjg Enterprises Ltd,SJG002,Corporate Resources and S151,Balance Sheet,Other Land And Buildings-Hra,Building Construction Material
http://thanet.gov.uk/supplierspend,Thanet District Council,15/07/2015,388344,273.20,,Southern Electric,SEL007,Operational Services,Revenue,Energy Costs,Utilities
http://thanet.gov.uk/supplierspend,Thanet District Council,15/07/2015,388345,223.06,,Southern Electric,SEL007,Operational Services,Revenue,Energy Costs,Utilities
http://thanet.gov.uk/supplierspend,Thanet District Council,15/07/2015,388357,4.72,,Southern Electric,SEL007,Community Services,Revenue,Energy Costs,Utilities
http://thanet.gov.uk/supplierspend,Thanet District Council,15/07/2015,388357,491.13,,Southern Electric,SEL007,Operational Services,Revenue,Energy Costs,Utilities
http://thanet.gov.uk/supplierspend,Thanet District Council,15/07/2015,388270,6587.83,,The Gpm Partnership Limited,GPM001,Corporate Resources and S151,Balance Sheet,Other Land And Buildings-Hra,Consultancy
http://thanet.gov.uk/supplierspend,Thanet District Council,16/07/2015,387723,525.00,,All Sign Solutions Ltd,ALL002,Corporate Resources and S151,Balance Sheet,Repairs And Mtce Holding A/C,Building Construction Material
http://thanet.gov.uk/supplierspend,Thanet District Council,16/07/2015,389071,975.00,,Civica Uk Ltd,CIV003,East Kent Shared Services,Revenue,Expenses,ICT
http://thanet.gov.uk/supplierspend,Thanet District Council,16/07/2015,389091,3025.00,,Civica Uk Ltd,CIV003,East Kent Shared Services,Revenue,Expenses,ICT
http://thanet.gov.uk/supplierspend,Thanet District Council,16/07/2015,387748,262.50,,E Saunders Margate Ltd,SAU001,Corporate Resources and S151,Balance Sheet,Repairs And Mtce Holding A/C,Construction-Repair And Maint
http://thanet.gov.uk/supplierspend,Thanet District Council,16/07/2015,387750,925.00,,J Redpath Buchanan & Co Ltd,RED001,Corporate Resources and S151,Balance Sheet,Repairs And Mtce Holding A/C,Building Construction Material
http://thanet.gov.uk/supplierspend,Thanet District Council,16/07/2015,387580,6432.46,,Midland Software Limited,MID013,Corporate Resources and S151,Balance Sheet,Plant And Equipment,ICT
http://thanet.gov.uk/supplierspend,Thanet District Council,16/07/2015,387581,2258.00,,Midland Software Limited,MID013,Corporate Resources and S151,Balance Sheet,Plant And Equipment,ICT
http://thanet.gov.uk/supplierspend,Thanet District Council,16/07/2015,388107,320.00,,Mrs K Hooper,HOO004,Chief Executive,Revenue,Services,Consultancy
http://thanet.gov.uk/supplierspend,Thanet District Council,16/07/2015,387165,392.00,,Outset (Uk) Ltd,OUT004,Corporate Resources and S151,Revenue,Services,Legal Services
http://thanet.gov.uk/supplierspend,Thanet District Council,16/07/2015,389155,2938.57,,The Housing Ombudsman,HOU013,Community Services,Revenue,Grants & Subscriptions,Human Resources
http://thanet.gov.uk/supplierspend,Thanet District Council,17/07/2015,N/A,462.28,,REDACTED PERSONAL DATA,N/A,East Kent Shared Services,Revenue,Car Allowances,Facilities And Management Serv
http://thanet.gov.uk/supplierspend,Thanet District Council,17/07/2015,N/A,271.79,,REDACTED PERSONAL DATA,N/A,Community Services,Revenue,Car Allowances,Stationery
http://thanet.gov.uk/supplierspend,Thanet District Council,17/07/2015,N/A,265.54,,REDACTED PERSONAL DATA,N/A,East Kent Shared Services,Revenue,Car Allowances,Cleaning And Janitorial
http://thanet.gov.uk/supplierspend,Thanet District Council,17/07/2015,N/A,403.78,,REDACTED PERSONAL DATA,N/A,Operational Services,Revenue,Car Allowances,Maritime Services
http://thanet.gov.uk/supplierspend,Thanet District Council,17/07/2015,N/A,261.64,,REDACTED PERSONAL DATA,N/A,Operational Services,Revenue,Car Allowances,Catering
http://thanet.gov.uk/supplierspend,Thanet District Council,17/07/2015,N/A,317.09,,REDACTED PERSONAL DATA,N/A,Community Services,Revenue,Car Allowances,Domestic Goods
http://thanet.gov.uk/supplierspend,Thanet District Council,17/07/2015,N/A,270.49,,REDACTED PERSONAL DATA,N/A,Operational Services,Revenue,Car Allowances,Various Cats - Public Sector
http://thanet.gov.uk/supplierspend,Thanet District Council,17/07/2015,N/A,412.37,,REDACTED PERSONAL DATA,N/A,Operational Services,Revenue,Car Allowances,Building Construction Material
http://thanet.gov.uk/supplierspend,Thanet District Council,17/07/2015,N/A,378.00,,REDACTED PERSONAL DATA,N/A,Community Services,Revenue,Car Allowances,Financial Services
http://thanet.gov.uk/supplierspend,Thanet District Council,17/07/2015,N/A,299.12,,REDACTED PERSONAL DATA,N/A,East Kent Shared Services,Revenue,Car Allowances,Human Resources
http://thanet.gov.uk/supplierspend,Thanet District Council,17/07/2015,N/A,738.70,,REDACTED PERSONAL DATA,N/A,East Kent Shared Services,Revenue,Public Transport,Human Resources
http://thanet.gov.uk/supplierspend,Thanet District Council,17/07/2015,N/A,272.57,,REDACTED PERSONAL DATA,N/A,East Kent Shared Services,Revenue,Car Allowances,Catering
http://thanet.gov.uk/supplierspend,Thanet District Council,20/07/2015,389243,237004.00,,Kent & Medway Towns Fire Authority,KMT001,Corporate Resources and S151,Balance Sheet,Collection Fund - Preceptors,Various Cats - Public Sector
http://thanet.gov.uk/supplierspend,Thanet District Council,20/07/2015,389244,3663427.00,,Kent County Council,KCC022,Corporate Resources and S151,Balance Sheet,Collection Fund - Preceptors,Various Cats - Public Sector
http://thanet.gov.uk/supplierspend,Thanet District Council,20/07/2015,389245,495882.00,,Kent Police & Crime Commissioner,KPA003,Corporate Resources and S151,Balance Sheet,Collection Fund - Preceptors,Various Cats - Public Sector
http://thanet.gov.uk/supplierspend,Thanet District Council,20/07/2015,389240,598.00,,Sideways Media Limited,SID002,Community Services,Revenue,Miscellaneous Expenses,Facilities And Management Serv
http://thanet.gov.uk/supplierspend,Thanet District Council,21/07/2015,387944,585.80,,Adecco Uk Ltd,ADE005,Chief Executive,Revenue,Agency Staff,Human Resources
http://thanet.gov.uk/supplierspend,Thanet District Council,21/07/2015,388520,589.78,,Adecco Uk Ltd,ADE005,Chief Executive,Revenue,Agency Staff,Human Resources
http://thanet.gov.uk/supplierspend,Thanet District Council,21/07/2015,388733,589.78,,Adecco Uk Ltd,ADE005,Chief Executive,Revenue,Agency Staff,Human Resources
http://thanet.gov.uk/supplierspend,Thanet District Council,21/07/2015,388768,2968.50,,Albion Fencing&Construction Kent Ltd,ALB005,Operational Services,Revenue,"Repairs,  Alter & Mtce - Build",Building Construction Material
http://thanet.gov.uk/supplierspend,Thanet District Council,21/07/2015,389239,658.73,,Allstar Business Solutions Ltd,ALL038,Operational Services,Revenue,Direct Transport Costs,Vehicle Management
http://thanet.gov.uk/supplierspend,Thanet District Council,21/07/2015,388743,212.50,,Ambassador Furniture Hire,AMB007,Community Services,Revenue,Services,Arts And Leisure Services
http://thanet.gov.uk/supplierspend,Thanet District Council,21/07/2015,388297,348.30,,Aspli Safety Limited,ASP005,Operational Services,Revenue,"Equip, Furniture And Materials",Maritime Services
http://thanet.gov.uk/supplierspend,Thanet District Council,21/07/2015,388675,6188.33,,Ats Euromaster Ltd,ATS002,Operational Services,Revenue,Direct Transport Costs,Vehicle Management
http://thanet.gov.uk/supplierspend,Thanet District Council,21/07/2015,388810,1743.08,,Bridge Security Cctv Ltd,BRI039,Community Services,Revenue,Services,Facilities And Management Serv
http://thanet.gov.uk/supplierspend,Thanet District Council,21/07/2015,388811,675.00,,Bridge Security Cctv Ltd,BRI039,Operational Services,Revenue,Services,Facilities And Management Serv
http://thanet.gov.uk/supplierspend,Thanet District Council,21/07/2015,387617,620.00,,C J Doors & Shutters Limited,CJD002,Operational Services,Revenue,"Equip, Furniture And Materials",Building Construction Material
http://thanet.gov.uk/supplierspend,Thanet District Council,21/07/2015,387978,4662.50,,Civica Uk Ltd,CIV003,Corporate Resources and S151,Revenue,Communications & Computing,ICT
http://thanet.gov.uk/supplierspend,Thanet District Council,21/07/2015,388321,454.42,,Clear Picture Services Limited,CLE015,Corporate Resources and S151,Balance Sheet,Repairs And Mtce Holding A/C,Facilities And Management Serv
http://thanet.gov.uk/supplierspend,Thanet District Council,21/07/2015,388142,81.84,,Comms Express Ltd,COM034,Corporate Resources and S151,Revenue,Communications & Computing,ICT
http://thanet.gov.uk/supplierspend,Thanet District Council,21/07/2015,388142,143.42,,Comms Express Ltd,COM034,East Kent Shared Services,Revenue,Communications & Computing,ICT
http://thanet.gov.uk/supplierspend,Thanet District Council,21/07/2015,387946,355.42,,Computerland Uk Limited,COM045,East Kent Shared Services,Revenue,Communications & Computing,ICT
http://thanet.gov.uk/supplierspend,Thanet District Council,21/07/2015,388041,311.63,,Computerland Uk Limited,COM045,East Kent Shared Services,Revenue,"Equip, Furniture And Materials",ICT
http://thanet.gov.uk/supplierspend,Thanet District Council,21/07/2015,389267,25885.82,,Crimson Crescent Ltd,CRI005,Corporate Resources and S151,Balance Sheet,Capital Exp-Non Council Assets,Grants
http://thanet.gov.uk/supplierspend,Thanet District Council,21/07/2015,388779,247.86,,Dennis Eagle Ltd,DEN005,Operational Services,Revenue,Direct Transport Costs,Vehicle Management
http://thanet.gov.uk/supplierspend,Thanet District Council,21/07/2015,388665,11478.34,,Dover District Council,DOV001,Corporate Resources and S151,Revenue,Services,Various Cats - Public Sector
http://thanet.gov.uk/supplierspend,Thanet District Council,21/07/2015,388660,1500.00,,Dr R K Chhabra,CHH001,Operational Services,Revenue,Services,Cemetery And Crematorium
http://thanet.gov.uk/supplierspend,Thanet District Council,21/07/2015,388664,788.50,,E Saunders Margate Ltd,SAU001,Corporate Resources and S151,Balance Sheet,Repairs And Mtce Holding A/C,Construction-Repair And Maint
http://thanet.gov.uk/supplierspend,Thanet District Council,21/07/2015,388274,559.90,,East Kent Components Ltd,EKC006,Operational Services,Revenue,Direct Transport Costs,Vehicle Management
http://thanet.gov.uk/supplierspend,Thanet District Council,21/07/2015,387625,2528.98,,Electrical Lighting Solutions Ltd,ELE013,Operational Services,Revenue,"Repairs,  Alter & Mtce - Build",Building Construction Material
http://thanet.gov.uk/supplierspend,Thanet District Council,21/07/2015,388662,408.22,,Enviro Technology Services Plc,ENV004,Community Services,Revenue,"Equip, Furniture And Materials",Environmental Services
http://thanet.gov.uk/supplierspend,Thanet District Council,21/07/2015,388289,868.80,,Ernest Doe & Sons Ltd,ERN003,Operational Services,Revenue,"Equip, Furniture And Materials",Horticultural
http://thanet.gov.uk/supplierspend,Thanet District Council,21/07/2015,388290,911.40,,Ernest Doe & Sons Ltd,ERN003,Operational Services,Revenue,"Equip, Furniture And Materials",Horticultural
http://thanet.gov.uk/supplierspend,Thanet District Council,21/07/2015,388291,404.25,,Ernest Doe & Sons Ltd,ERN003,Operational Services,Revenue,"Equip, Furniture And Materials",Horticultural
http://thanet.gov.uk/supplierspend,Thanet District Council,21/07/2015,388117,1000.00,,Estateman Limited,EST006,Corporate Resources and S151,Revenue,Communications & Computing,ICT
http://thanet.gov.uk/supplierspend,Thanet District Council,21/07/2015,388117,3000.00,,Estateman Limited,EST006,Community Services,Revenue,Communications & Computing,ICT
http://thanet.gov.uk/supplierspend,Thanet District Council,21/07/2015,388827,8955.65,,F R Jones & Son,JON020,Operational Services,Revenue,"Equip, Furniture And Materials",Horticultural
http://thanet.gov.uk/supplierspend,Thanet District Council,21/07/2015,388146,510.00,,Florence Court Hotel,FLO003,Community Services,Revenue,Services,Housing Management
http://thanet.gov.uk/supplierspend,Thanet District Council,21/07/2015,388312,994.50,,Frandham Boarding Kennels,FRA010,Operational Services,Revenue,Services,Environmental Services
http://thanet.gov.uk/supplierspend,Thanet District Council,21/07/2015,389257,47300.00,,Gartner Uk Limited,GAR023,East Kent Shared Services,Revenue,Services,ICT
http://thanet.gov.uk/supplierspend,Thanet District Council,21/07/2015,388269,3624.00,,Gb Sport & Leisure Uk Ltd,GBS002,Operational Services,Revenue,"Equip, Furniture And Materials",Sports Playground Equipment
http://thanet.gov.uk/supplierspend,Thanet District Council,21/07/2015,386830,4240.00,,Heath Lambert Limited (Client Money),HEA011,Corporate Resources and S151,Balance Sheet,Insurance Holding Account,Financial Services
http://thanet.gov.uk/supplierspend,Thanet District Council,21/07/2015,388262,633.88,,Hr Go Recruitment Ltd,HRG002,Community Services,Revenue,Agency Staff,Human Resources
http://thanet.gov.uk/supplierspend,Thanet District Council,21/07/2015,388263,1060.50,,Hr Go Recruitment Ltd,HRG002,Operational Services,Revenue,Agency Staff,Human Resources
http://thanet.gov.uk/supplierspend,Thanet District Council,21/07/2015,388264,550.77,,Hr Go Recruitment Ltd,HRG002,Operational Services,Revenue,Agency Staff,Human Resources
http://thanet.gov.uk/supplierspend,Thanet District Council,21/07/2015,388265,2003.12,,Hr Go Recruitment Ltd,HRG002,Operational Services,Revenue,Agency Staff,Human Resources
http://thanet.gov.uk/supplierspend,Thanet District Council,21/07/2015,388266,1170.70,,Hr Go Recruitment Ltd,HRG002,Operational Services,Revenue,Agency Staff,Human Resources
http://thanet.gov.uk/supplierspend,Thanet District Council,21/07/2015,389132,622.45,,Hr Go Recruitment Ltd,HRG002,Operational Services,Revenue,Agency Staff,Human Resources
http://thanet.gov.uk/supplierspend,Thanet District Council,21/07/2015,389134,776.93,,Hr Go Recruitment Ltd,HRG002,Operational Services,Revenue,Agency Staff,Human Resources
http://thanet.gov.uk/supplierspend,Thanet District Council,21/07/2015,389135,2020.24,,Hr Go Recruitment Ltd,HRG002,Operational Services,Revenue,Agency Staff,Human Resources
http://thanet.gov.uk/supplierspend,Thanet District Council,21/07/2015,389209,9574.28,,Hr Go Recruitment Ltd,HRG002,Operational Services,Revenue,Agency Staff,Human Resources
http://thanet.gov.uk/supplierspend,Thanet District Council,21/07/2015,389214,5821.46,,Hr Go Recruitment Ltd,HRG002,Operational Services,Revenue,Agency Staff,Human Resources
http://thanet.gov.uk/supplierspend,Thanet District Council,21/07/2015,389216,9075.52,,Hr Go Recruitment Ltd,HRG002,Operational Services,Revenue,Agency Staff,Human Resources
http://thanet.gov.uk/supplierspend,Thanet District Council,21/07/2015,389217,434.33,,Hr Go Recruitment Ltd,HRG002,Operational Services,Revenue,Agency Staff,Human Resources
http://thanet.gov.uk/supplierspend,Thanet District Council,21/07/2015,389218,510.94,,Hr Go Recruitment Ltd,HRG002,Operational Services,Revenue,Agency Staff,Human Resources
http://thanet.gov.uk/supplierspend,Thanet District Council,21/07/2015,389219,1883.28,,Hr Go Recruitment Ltd,HRG002,Operational Services,Revenue,Agency Staff,Human Resources
http://thanet.gov.uk/supplierspend,Thanet District Council,21/07/2015,389222,5941.16,,Hr Go Recruitment Ltd,HRG002,Operational Services,Revenue,Agency Staff,Human Resources
http://thanet.gov.uk/supplierspend,Thanet District Council,21/07/2015,389223,7393.98,,Hr Go Recruitment Ltd,HRG002,Operational Services,Revenue,Agency Staff,Human Resources
http://thanet.gov.uk/supplierspend,Thanet District Council,21/07/2015,389224,4869.86,,Hr Go Recruitment Ltd,HRG002,Operational Services,Revenue,Agency Staff,Human Resources
http://thanet.gov.uk/supplierspend,Thanet District Council,21/07/2015,389225,5368.91,,Hr Go Recruitment Ltd,HRG002,Operational Services,Revenue,Agency Staff,Human Resources
http://thanet.gov.uk/supplierspend,Thanet District Council,21/07/2015,389226,6526.16,,Hr Go Recruitment Ltd,HRG002,Operational Services,Revenue,Agency Staff,Human Resources
http://thanet.gov.uk/supplierspend,Thanet District Council,21/07/2015,389227,4398.44,,Hr Go Recruitment Ltd,HRG002,Operational Services,Revenue,Agency Staff,Human Resources
http://thanet.gov.uk/supplierspend,Thanet District Council,21/07/2015,389228,8909.75,,Hr Go Recruitment Ltd,HRG002,Operational Services,Revenue,Agency Staff,Human Resources
http://thanet.gov.uk/supplierspend,Thanet District Council,21/07/2015,389229,9566.32,,Hr Go Recruitment Ltd,HRG002,Operational Services,Revenue,Agency Staff,Human Resources
http://thanet.gov.uk/supplierspend,Thanet District Council,21/07/2015,389230,6665.53,,Hr Go Recruitment Ltd,HRG002,Operational Services,Revenue,Agency Staff,Human Resources
http://thanet.gov.uk/supplierspend,Thanet District Council,21/07/2015,388591,1626.00,,I S & G Steel Stockholders Ltd,ISG001,Operational Services,Revenue,Direct Transport Costs,Building Construction Material
http://thanet.gov.uk/supplierspend,Thanet District Council,21/07/2015,388173,2180.00,,Idox Software  Limited,IDO001,Community Services,Revenue,Communications & Computing,ICT
http://thanet.gov.uk/supplierspend,Thanet District Council,21/07/2015,388036,298.82,,Insight Direct (Uk) Ltd,INS013,Operational Services,Revenue,Communications & Computing,ICT
http://thanet.gov.uk/supplierspend,Thanet District Council,21/07/2015,389263,1027.70,,John Gale,GAL001,Corporate Resources and S151,Balance Sheet,Capital Exp-Non Council Assets,Grants
http://thanet.gov.uk/supplierspend,Thanet District Council,21/07/2015,389266,690.70,,John Gale,GAL001,Corporate Resources and S151,Balance Sheet,Capital Exp-Non Council Assets,Grants
http://thanet.gov.uk/supplierspend,Thanet District Council,21/07/2015,388047,1200.00,,Jump It Recruitment Solutions Ltd,JUM001,East Kent Shared Services,Revenue,Agency Staff,Human Resources
http://thanet.gov.uk/supplierspend,Thanet District Council,21/07/2015,388668,314.00,,Kelway Ltd,KEL003,East Kent Shared Services,Revenue,"Equip, Furniture And Materials",ICT
http://thanet.gov.uk/supplierspend,Thanet District Council,21/07/2015,388732,1400.00,,Kent County Council,KCC002,Community Services,Revenue,Services,Various Cats - Public Sector
http://thanet.gov.uk/supplierspend,Thanet District Council,21/07/2015,388302,336.80,,Kent County Council (Kcs),KCC003,Community Services,Revenue,"Repairs,  Alter & Mtce - Build",Facilities And Management Serv
http://thanet.gov.uk/supplierspend,Thanet District Council,21/07/2015,388749,400.00,,Km Media Group Limited,KMM001,Community Services,Revenue,Miscellaneous Expenses,Facilities And Management Serv
http://thanet.gov.uk/supplierspend,Thanet District Council,21/07/2015,387752,263.22,,Lister Wilder Limited,LIS002,Operational Services,Revenue,"Equip, Furniture And Materials",Horticultural
http://thanet.gov.uk/supplierspend,Thanet District Council,21/07/2015,388706,376.00,,Lyreco Uk Limited,LYR001,Community Services,Revenue,"Print, Stat And Gen Off Exps",Stationery
http://thanet.gov.uk/supplierspend,Thanet District Council,21/07/2015,389130,376.00,,Lyreco Uk Limited,LYR001,Community Services,Revenue,"Print, Stat And Gen Off Exps",Stationery
http://thanet.gov.uk/supplierspend,Thanet District Council,21/07/2015,389260,500.00,,Margate Lawn Tennis Club,MLT001,Community Services,Revenue,Grants & Subscriptions,Arts And Leisure Services
http://thanet.gov.uk/supplierspend,Thanet District Council,21/07/2015,388800,450.00,,Maxwells Grounds Maintenance Ltd,MAX002,Community Services,Revenue,"Repairs,  Alter & Mtce - Build",Construction-Repair And Maint
http://thanet.gov.uk/supplierspend,Thanet District Council,21/07/2015,389068,920.00,,Maxwells Grounds Maintenance Ltd,MAX002,Operational Services,Revenue,"Repairs,  Alter & Mtce - Build",Construction-Repair And Maint
http://thanet.gov.uk/supplierspend,Thanet District Council,21/07/2015,388160,29.43,,Mears Ltd,MEA003,Community Services,Revenue,"Repairs,  Alter & Mtce - Build",Construction-Repair And Maint
http://thanet.gov.uk/supplierspend,Thanet District Council,21/07/2015,388160,402.52,,Mears Ltd,MEA003,Operational Services,Revenue,"Repairs,  Alter & Mtce - Build",Construction-Repair And Maint
http://thanet.gov.uk/supplierspend,Thanet District Council,21/07/2015,388226,2493.76,,Mears Ltd,MEA003,Corporate Resources and S151,Balance Sheet,Repairs And Mtce Holding A/C,Construction-Repair And Maint
http://thanet.gov.uk/supplierspend,Thanet District Council,21/07/2015,388227,24360.09,,Mears Ltd,MEA003,Corporate Resources and S151,Balance Sheet,Repairs And Mtce Holding A/C,Construction-Repair And Maint
http://thanet.gov.uk/supplierspend,Thanet District Council,21/07/2015,388228,32450.39,,Mears Ltd,MEA003,Corporate Resources and S151,Balance Sheet,Repairs And Mtce Holding A/C,Construction-Repair And Maint
http://thanet.gov.uk/supplierspend,Thanet District Council,21/07/2015,388230,2515.02,,Mears Ltd,MEA003,Corporate Resources and S151,Balance Sheet,Repairs And Mtce Holding A/C,Construction-Repair And Maint
http://thanet.gov.uk/supplierspend,Thanet District Council,21/07/2015,388746,378.12,,Mears Ltd,MEA003,Community Services,Revenue,"Repairs,  Alter & Mtce - Build",Construction-Repair And Maint
http://thanet.gov.uk/supplierspend,Thanet District Council,21/07/2015,388313,7140.00,,Milmer Consulting Limited,MIL046,Operational Services,Revenue,Services,Environmental Services
http://thanet.gov.uk/supplierspend,Thanet District Council,21/07/2015,389073,582.75,,Morgan Jones Ltd,MOR001,Community Services,Revenue,Agency Staff,Human Resources
http://thanet.gov.uk/supplierspend,Thanet District Council,21/07/2015,389153,325.00,,Mrs K Hooper,HOO004,Chief Executive,Revenue,Services,Consultancy
http://thanet.gov.uk/supplierspend,Thanet District Council,21/07/2015,388535,560.00,,N K F Seymour Electrical Cont,SEY002,Community Services,Revenue,Services,Building Construction Material
http://thanet.gov.uk/supplierspend,Thanet District Council,21/07/2015,388671,216.74,,Nauticalia Limited,NAU001,Community Services,Revenue,"Equip, Furniture And Materials",Stationery
http://thanet.gov.uk/supplierspend,Thanet District Council,21/07/2015,386829,-1131.90,,Neopost Ltd,NEO003,Community Services,Revenue,"Equip, Furniture And Materials",Mail Services
http://thanet.gov.uk/supplierspend,Thanet District Council,21/07/2015,388320,1227.45,,Neopost Ltd,NEO003,Community Services,Revenue,"Equip, Furniture And Materials",Mail Services
http://thanet.gov.uk/supplierspend,Thanet District Council,21/07/2015,388300,1332.00,,New Tech Security Ltd,NEW027,Corporate Resources and S151,Revenue,Communications & Computing,Facilities And Management Serv
http://thanet.gov.uk/supplierspend,Thanet District Council,21/07/2015,388821,591.00,,New Tech Security Ltd,NEW027,Community Services,Revenue,"Equip, Furniture And Materials",Facilities And Management Serv
http://thanet.gov.uk/supplierspend,Thanet District Council,21/07/2015,388713,1099.00,,Nla Media Access Limited,NLA001,Corporate Resources and S151,Revenue,Grants & Subscriptions,Facilities And Management Serv
http://thanet.gov.uk/supplierspend,Thanet District Council,21/07/2015,388121,393.38,,Ocs Group Uk Ltd T/A Fountains,OCS005,Corporate Resources and S151,Balance Sheet,Repairs And Mtce Holding A/C,Cleaning And Janitorial
http://thanet.gov.uk/supplierspend,Thanet District Council,21/07/2015,388125,797.69,,Ocs Group Uk Ltd T/A Fountains,OCS005,Community Services,Revenue,Cleaning & Domestic Supplies,Cleaning And Janitorial
http://thanet.gov.uk/supplierspend,Thanet District Council,21/07/2015,388023,292.72,,Orange Personal Communications Ltd,ORA002,Corporate Resources and S151,Revenue,Communications & Computing,ICT
http://thanet.gov.uk/supplierspend,Thanet District Council,21/07/2015,388669,297.64,,Orbis Protect Limited,ORB009,Community Services,Revenue,Services,Facilities And Management Serv
http://thanet.gov.uk/supplierspend,Thanet District Council,21/07/2015,388298,970.65,,Portakabin Ltd,POR001,Operational Services,Revenue,"Repairs,  Alter & Mtce - Build",Facilities And Management Serv
http://thanet.gov.uk/supplierspend,Thanet District Council,21/07/2015,388093,12128.69,,Probrand Ltd,PRO012,East Kent Shared Services,Revenue,Communications & Computing,ICT
http://thanet.gov.uk/supplierspend,Thanet District Council,21/07/2015,388231,3112.38,,Probrand Ltd,PRO012,Operational Services,Revenue,Communications & Computing,ICT
http://thanet.gov.uk/supplierspend,Thanet District Council,21/07/2015,388224,20918.52,,Profile Security Services Limited,PRO018,Operational Services,Revenue,Services,Facilities And Management Serv
http://thanet.gov.uk/supplierspend,Thanet District Council,21/07/2015,387933,857.50,,R Cannon,CAN007,Operational Services,Revenue,Services,Maritime Services
http://thanet.gov.uk/supplierspend,Thanet District Council,21/07/2015,388144,735.00,,R Cannon,CAN007,Operational Services,Revenue,Services,Maritime Services
http://thanet.gov.uk/supplierspend,Thanet District Council,21/07/2015,388599,1310.00,,Rackspace Limited,RAC006,East Kent Shared Services,Revenue,Communications & Computing,ICT
http://thanet.gov.uk/supplierspend,Thanet District Council,21/07/2015,388818,810.00,,Rigby Taylor Ltd,RIG002,Operational Services,Revenue,Services,Horticultural
http://thanet.gov.uk/supplierspend,Thanet District Council,21/07/2015,389070,1220.00,,Rigby Taylor Ltd,RIG002,Operational Services,Revenue,"Equip, Furniture And Materials",Horticultural
http://thanet.gov.uk/supplierspend,Thanet District Council,21/07/2015,387999,5504.95,,Royal Mail,ROY004,Community Services,Revenue,Communications & Computing,Mail Services
http://thanet.gov.uk/supplierspend,Thanet District Council,21/07/2015,388656,2546.49,,Royal Mail,ROY004,Community Services,Revenue,Communications & Computing,Mail Services
http://thanet.gov.uk/supplierspend,Thanet District Council,21/07/2015,388826,2066.05,,Royal Mail,ROY004,Community Services,Revenue,Communications & Computing,Mail Services
http://thanet.gov.uk/supplierspend,Thanet District Council,21/07/2015,388765,50000.00,,Sands Heritage Ltd,SAN025,Corporate Resources and S151,Balance Sheet,Other Land And Buildings-Hra,Grants
http://thanet.gov.uk/supplierspend,Thanet District Council,21/07/2015,388105,2423.37,,Sellick Partnership Ltd,SEL011,Corporate Resources and S151,Revenue,Services,Human Resources
http://thanet.gov.uk/supplierspend,Thanet District Council,21/07/2015,388114,819.35,,Sellick Partnership Ltd,SEL011,Corporate Resources and S151,Revenue,Agency Staff,Human Resources
http://thanet.gov.uk/supplierspend,Thanet District Council,21/07/2015,388154,2925.04,,Sellick Partnership Ltd,SEL011,Corporate Resources and S151,Revenue,Services,Human Resources
http://thanet.gov.uk/supplierspend,Thanet District Council,21/07/2015,388267,845.95,,Sellick Partnership Ltd,SEL011,Corporate Resources and S151,Revenue,Agency Staff,Human Resources
http://thanet.gov.uk/supplierspend,Thanet District Council,21/07/2015,388515,1522.80,,Sellick Partnership Ltd,SEL011,Corporate Resources and S151,Revenue,Agency Staff,Human Resources
http://thanet.gov.uk/supplierspend,Thanet District Council,21/07/2015,388752,813.75,,Sellick Partnership Ltd,SEL011,Corporate Resources and S151,Revenue,Agency Staff,Human Resources
http://thanet.gov.uk/supplierspend,Thanet District Council,21/07/2015,388760,2801.73,,Sellick Partnership Ltd,SEL011,Corporate Resources and S151,Revenue,Services,Human Resources
http://thanet.gov.uk/supplierspend,Thanet District Council,21/07/2015,388767,73500.00,,Sjg Enterprises Ltd,SJG002,Corporate Resources and S151,Balance Sheet,Other Land And Buildings-Hra,Building Construction Material
http://thanet.gov.uk/supplierspend,Thanet District Council,21/07/2015,388112,1400.00,,Sjr Pm Solutions Limited,SJR001,East Kent Shared Services,Revenue,Services,ICT
http://thanet.gov.uk/supplierspend,Thanet District Council,21/07/2015,388517,1400.00,,Sjr Pm Solutions Limited,SJR001,East Kent Shared Services,Revenue,Services,ICT
http://thanet.gov.uk/supplierspend,Thanet District Council,21/07/2015,389050,9653.47,,Southern Electric,SEL007,Community Services,Revenue,Energy Costs,Utilities
http://thanet.gov.uk/supplierspend,Thanet District Council,21/07/2015,389017,559.04,,Southern Water,SWA001,Operational Services,Revenue,Water Services,Utilities
http://thanet.gov.uk/supplierspend,Thanet District Council,21/07/2015,389018,-1593.80,,Southern Water,SWA001,Operational Services,Revenue,Water Services,Utilities
http://thanet.gov.uk/supplierspend,Thanet District Council,21/07/2015,389022,2543.01,,Southern Water,SWA001,Community Services,Revenue,Water Services,Utilities
http://thanet.gov.uk/supplierspend,Thanet District Council,21/07/2015,389048,1492.29,,Southern Water,SWA001,Community Services,Revenue,Water Services,Utilities
http://thanet.gov.uk/supplierspend,Thanet District Council,21/07/2015,389090,1378.91,,Southern Water,SWA001,Operational Services,Revenue,Water Services,Utilities
http://thanet.gov.uk/supplierspend,Thanet District Council,21/07/2015,389194,1325.00,,Spaldings  Ltd,SPA006,Operational Services,Revenue,"Equip, Furniture And Materials",Horticultural
http://thanet.gov.uk/supplierspend,Thanet District Council,21/07/2015,388218,497.12,,Standfast Burglar Alarm Co (Ek) Ltd,STA003,Operational Services,Revenue,"Equip, Furniture And Materials",Facilities And Management Serv
http://thanet.gov.uk/supplierspend,Thanet District Council,21/07/2015,388679,1120.00,,Steton Associated Works Limited,STE036,Community Services,Revenue,"Repairs,  Alter & Mtce - Build",Building Construction Material
http://thanet.gov.uk/supplierspend,Thanet District Council,21/07/2015,388804,924.80,,Straight Manufacturing Limited,STR038,Operational Services,Revenue,"Equip, Furniture And Materials",Environmental Services
http://thanet.gov.uk/supplierspend,Thanet District Council,21/07/2015,389254,2000.00,,Sysnet Global Solutions (Uk) Limited,SYS003,East Kent Shared Services,Revenue,Communications & Computing,Consultancy
http://thanet.gov.uk/supplierspend,Thanet District Council,21/07/2015,388722,416.50,,The Bell Brush Company,BEL018,Operational Services,Revenue,"Equip, Furniture And Materials",Cleaning And Janitorial
http://thanet.gov.uk/supplierspend,Thanet District Council,21/07/2015,388485,2854.14,,The Glenwood Hotel,GLE007,Community Services,Revenue,Services,Housing Management
http://thanet.gov.uk/supplierspend,Thanet District Council,21/07/2015,388486,2974.98,,The Glenwood Hotel,GLE007,Community Services,Revenue,Services,Housing Management
http://thanet.gov.uk/supplierspend,Thanet District Council,21/07/2015,388769,2479.15,,The Glenwood Hotel,GLE007,Community Services,Revenue,Services,Housing Management
http://thanet.gov.uk/supplierspend,Thanet District Council,21/07/2015,388829,2770.80,,The Glenwood Hotel,GLE007,Community Services,Revenue,Services,Housing Management
http://thanet.gov.uk/supplierspend,Thanet District Council,21/07/2015,388830,2391.65,,The Glenwood Hotel,GLE007,Community Services,Revenue,Services,Housing Management
http://thanet.gov.uk/supplierspend,Thanet District Council,21/07/2015,388677,1666.67,,Tourism Works,TOU007,Community Services,Revenue,Services,Facilities And Management Serv
http://thanet.gov.uk/supplierspend,Thanet District Council,21/07/2015,388175,22353.22,,Trafalgar Cleaning Equipment Ltd,TRA033,Corporate Resources and S151,Balance Sheet,Plant And Equipment,Cleaning And Janitorial
http://thanet.gov.uk/supplierspend,Thanet District Council,21/07/2015,387621,635.45,,Trowers & Hamlins,TRO001,Corporate Resources and S151,Balance Sheet,Other Land And Buildings-Hra,Legal Services
http://thanet.gov.uk/supplierspend,Thanet District Council,21/07/2015,387942,417.55,,Trowers & Hamlins,TRO001,Corporate Resources and S151,Balance Sheet,Other Land And Buildings-Hra,Legal Services
http://thanet.gov.uk/supplierspend,Thanet District Council,21/07/2015,389264,11127.00,,Trueden Disability Adaptations Ltd,TRU012,Corporate Resources and S151,Balance Sheet,Capital Exp-Non Council Assets,Grants
http://thanet.gov.uk/supplierspend,Thanet District Council,21/07/2015,389265,6907.00,,Trueden Disability Adaptations Ltd,TRU012,Corporate Resources and S151,Balance Sheet,Capital Exp-Non Council Assets,Grants
http://thanet.gov.uk/supplierspend,Thanet District Council,21/07/2015,388803,294.66,,Viridor Waste Management Ltd,VIR003,Community Services,Revenue,Cleaning & Domestic Supplies,Environmental Services
http://thanet.gov.uk/supplierspend,Thanet District Council,21/07/2015,388306,250.00,,W Brazil & Bros,BRA001,Operational Services,Revenue,Services,Environmental Services
http://thanet.gov.uk/supplierspend,Thanet District Council,23/07/2015,389561,311.17,,Access Ladders (Uk) Limited,ACC009,Operational Services,Revenue,"Repairs,  Alter & Mtce - Build",Building Construction Material
http://thanet.gov.uk/supplierspend,Thanet District Council,23/07/2015,389201,1400.00,,Andrews & Elliott,AND001,Operational Services,Revenue,"Repairs,  Alter & Mtce - Build",Cemetery And Crematorium
http://thanet.gov.uk/supplierspend,Thanet District Council,23/07/2015,388737,500.75,,Aqua Pure (South East) Limited,AQU007,Operational Services,Revenue,"Repairs,  Alter & Mtce - Build",Maritime Services
http://thanet.gov.uk/supplierspend,Thanet District Council,23/07/2015,389137,700.00,,Belinda Dixon Media Limited,DIX006,Community Services,Revenue,Services,ICT
http://thanet.gov.uk/supplierspend,Thanet District Council,23/07/2015,388158,342.34,,Bookpoint Limited,BOO003,Community Services,Revenue,"Equip, Furniture And Materials",Stationery
http://thanet.gov.uk/supplierspend,Thanet District Council,23/07/2015,388604,946.60,,Bowman Maintenance Contracting,BMC001,Operational Services,Revenue,"Repairs,  Alter & Mtce - Build",Building Construction Material
http://thanet.gov.uk/supplierspend,Thanet District Council,23/07/2015,388575,213.20,,C Brewer & Sons Ltd,BRE001,Operational Services,Revenue,"Equip, Furniture And Materials",Building Construction Material
http://thanet.gov.uk/supplierspend,Thanet District Council,23/07/2015,388714,9500.00,,Callcredit Limited,CAL009,East Kent Shared Services,Revenue,Communications & Computing,Financial Services
http://thanet.gov.uk/supplierspend,Thanet District Council,23/07/2015,389122,1600.00,,Canterbury Scaffolding,CAN023,Corporate Resources and S151,Balance Sheet,Council Dwellings,Construction-Repair And Maint
http://thanet.gov.uk/supplierspend,Thanet District Council,23/07/2015,388764,3962.63,,Civica Uk Ltd,CIV003,East Kent Shared Services,Revenue,Communications & Computing,ICT
http://thanet.gov.uk/supplierspend,Thanet District Council,23/07/2015,388816,554.39,,Civica Uk Ltd,CIV003,East Kent Shared Services,Revenue,Expenses,ICT
http://thanet.gov.uk/supplierspend,Thanet District Council,23/07/2015,389055,430.00,,Commercial Services Trading Ltd,COM048,Community Services,Revenue,Cont Hire & Operating Lease,Various Cats - Public Sector
http://thanet.gov.uk/supplierspend,Thanet District Council,23/07/2015,389056,467.10,,Commercial Services Trading Ltd,COM048,Community Services,Revenue,Cont Hire & Operating Lease,Various Cats - Public Sector
http://thanet.gov.uk/supplierspend,Thanet District Council,23/07/2015,389195,572.29,,Computerland Uk Limited,COM045,East Kent Shared Services,Revenue,Communications & Computing,ICT
http://thanet.gov.uk/supplierspend,Thanet District Council,23/07/2015,389562,50067.67,,D C L G,DCL002,Corporate Resources and S151,Balance Sheet,Capital Receipts Reserve,Government Agencies
http://thanet.gov.uk/supplierspend,Thanet District Council,23/07/2015,389205,665.26,,D J Invicta Supplies Ltd,DJI001,Operational Services,Revenue,"Equip, Furniture And Materials",Building Construction Material
http://thanet.gov.uk/supplierspend,Thanet District Council,23/07/2015,389554,23562.58,,Dover District Council,DOV001,Corporate Resources and S151,Revenue,Services,Various Cats - Public Sector
http://thanet.gov.uk/supplierspend,Thanet District Council,23/07/2015,388736,449.17,,Ernest Doe & Sons Ltd,ERN003,Operational Services,Revenue,"Equip, Furniture And Materials",Horticultural
http://thanet.gov.uk/supplierspend,Thanet District Council,23/07/2015,388738,481.64,,Evergreen Landscaping Gardening Ltd,EVE004,Community Services,Revenue,Grounds Mtce Costs,Horticultural
http://thanet.gov.uk/supplierspend,Thanet District Council,23/07/2015,388538,850.30,,Eyeball Signs,EYE002,Operational Services,Revenue,"Repairs,  Alter & Mtce - Build",Facilities And Management Serv
http://thanet.gov.uk/supplierspend,Thanet District Council,23/07/2015,389563,1499.20,,Family Mosaic Housing,FAM001,Corporate Resources and S151,Balance Sheet,Capital Exp-Non Council Assets,Housing Management
http://thanet.gov.uk/supplierspend,Thanet District Council,23/07/2015,388137,9528.23,,Fresh Acres Nurseries Limited,FRE017,Operational Services,Revenue,"Equip, Furniture And Materials",Horticultural
http://thanet.gov.uk/supplierspend,Thanet District Council,23/07/2015,388678,314.33,,G & G Forklifts,GGF001,Operational Services,Revenue,"Equip, Furniture And Materials",Vehicle Management
http://thanet.gov.uk/supplierspend,Thanet District Council,23/07/2015,389111,770.00,,Gulliver'S Truck Hire Limited,GUL001,Operational Services,Revenue,Cont Hire & Operating Lease,Vehicle Management
http://thanet.gov.uk/supplierspend,Thanet District Council,23/07/2015,389211,254.79,,Gulliver'S Truck Hire Limited,GUL001,Operational Services,Revenue,Cont Hire & Operating Lease,Vehicle Management
http://thanet.gov.uk/supplierspend,Thanet District Council,23/07/2015,389190,266.80,,H E Municipal Engineering Ltd,HEM003,Operational Services,Revenue,Direct Transport Costs,Vehicle Management
http://thanet.gov.uk/supplierspend,Thanet District Council,23/07/2015,389193,442.50,,H E Municipal Engineering Ltd,HEM003,Operational Services,Revenue,Direct Transport Costs,Vehicle Management
http://thanet.gov.uk/supplierspend,Thanet District Council,23/07/2015,389074,990.36,,Hi Way Services Ltd,HIW002,Operational Services,Revenue,"Repairs,  Alter & Mtce - Build",Highway Equipment And Material
http://thanet.gov.uk/supplierspend,Thanet District Council,23/07/2015,389131,442.52,,Hr Go Recruitment Ltd,HRG002,Community Services,Revenue,Agency Staff,Human Resources
http://thanet.gov.uk/supplierspend,Thanet District Council,23/07/2015,389133,1060.50,,Hr Go Recruitment Ltd,HRG002,Operational Services,Revenue,Agency Staff,Human Resources
http://thanet.gov.uk/supplierspend,Thanet District Council,23/07/2015,389220,1060.50,,Hr Go Recruitment Ltd,HRG002,Operational Services,Revenue,Agency Staff,Human Resources
http://thanet.gov.uk/supplierspend,Thanet District Council,23/07/2015,389234,442.52,,Hr Go Recruitment Ltd,HRG002,Community Services,Revenue,Agency Staff,Human Resources
http://thanet.gov.uk/supplierspend,Thanet District Council,23/07/2015,388310,1087.05,,Hydro-Cleansing Ltd,HYD012,Operational Services,Revenue,Cleaning & Domestic Supplies,Building Construction Material
http://thanet.gov.uk/supplierspend,Thanet District Council,23/07/2015,388222,2817.50,,Indespension Limited,IND010,Operational Services,Revenue,"Equip, Furniture And Materials",Vehicle Management
http://thanet.gov.uk/supplierspend,Thanet District Council,23/07/2015,388781,1750.00,,Jump It Recruitment Solutions Ltd,JUM001,East Kent Shared Services,Revenue,Services,Human Resources
http://thanet.gov.uk/supplierspend,Thanet District Council,23/07/2015,388782,1200.00,,Jump It Recruitment Solutions Ltd,JUM001,East Kent Shared Services,Revenue,Agency Staff,Human Resources
http://thanet.gov.uk/supplierspend,Thanet District Council,23/07/2015,389151,3150.00,,Jump It Recruitment Solutions Ltd,JUM001,East Kent Shared Services,Revenue,Services,Human Resources
http://thanet.gov.uk/supplierspend,Thanet District Council,23/07/2015,389114,499.19,,Kent County Council (Kcs),KCC003,Community Services,Revenue,Energy Costs,Facilities And Management Serv
http://thanet.gov.uk/supplierspend,Thanet District Council,23/07/2015,389118,285.97,,Kent County Council (Kcs),KCC003,Operational Services,Revenue,Energy Costs,Facilities And Management Serv
http://thanet.gov.uk/supplierspend,Thanet District Council,23/07/2015,389119,590.27,,Kent County Council (Kcs),KCC003,Community Services,Revenue,Energy Costs,Facilities And Management Serv
http://thanet.gov.uk/supplierspend,Thanet District Council,23/07/2015,389120,229.51,,Kent County Council (Kcs),KCC003,Operational Services,Revenue,Energy Costs,Facilities And Management Serv
http://thanet.gov.uk/supplierspend,Thanet District Council,23/07/2015,389139,1471.40,,Kent County Council (Kcs),KCC003,Operational Services,Revenue,Energy Costs,Facilities And Management Serv
http://thanet.gov.uk/supplierspend,Thanet District Council,23/07/2015,389140,1439.23,,Kent County Council (Kcs),KCC003,Operational Services,Revenue,Energy Costs,Facilities And Management Serv
http://thanet.gov.uk/supplierspend,Thanet District Council,23/07/2015,389141,960.57,,Kent County Council (Kcs),KCC003,Operational Services,Revenue,Energy Costs,Facilities And Management Serv
http://thanet.gov.uk/supplierspend,Thanet District Council,23/07/2015,389142,3457.34,,Kent County Council (Kcs),KCC003,Operational Services,Revenue,Energy Costs,Facilities And Management Serv
http://thanet.gov.uk/supplierspend,Thanet District Council,23/07/2015,389145,-1986.45,,Kent County Council (Kcs),KCC003,Operational Services,Revenue,Energy Costs,Facilities And Management Serv
http://thanet.gov.uk/supplierspend,Thanet District Council,23/07/2015,389146,2283.07,,Kent County Council (Kcs),KCC003,Operational Services,Revenue,Energy Costs,Facilities And Management Serv
http://thanet.gov.uk/supplierspend,Thanet District Council,23/07/2015,389154,479.06,,Kent County Council (Kcs),KCC003,Community Services,Revenue,Energy Costs,Facilities And Management Serv
http://thanet.gov.uk/supplierspend,Thanet District Council,23/07/2015,388728,10039.90,,Kingdom Security Limited,KIN039,Operational Services,Revenue,Services,Street And Traffic Management
http://thanet.gov.uk/supplierspend,Thanet District Council,23/07/2015,388787,600.00,,Km Media Group Limited,KMM001,Community Services,Revenue,Miscellaneous Expenses,Facilities And Management Serv
http://thanet.gov.uk/supplierspend,Thanet District Council,23/07/2015,388788,600.00,,Km Media Group Limited,KMM001,Community Services,Revenue,Miscellaneous Expenses,Facilities And Management Serv
http://thanet.gov.uk/supplierspend,Thanet District Council,23/07/2015,388789,1200.00,,Km Media Group Limited,KMM001,Community Services,Revenue,Miscellaneous Expenses,Facilities And Management Serv
http://thanet.gov.uk/supplierspend,Thanet District Council,23/07/2015,388792,600.00,,Km Media Group Limited,KMM001,Operational Services,Revenue,Miscellaneous Expenses,Facilities And Management Serv
http://thanet.gov.uk/supplierspend,Thanet District Council,23/07/2015,388793,600.00,,Km Media Group Limited,KMM001,Operational Services,Revenue,Miscellaneous Expenses,Facilities And Management Serv
http://thanet.gov.uk/supplierspend,Thanet District Council,23/07/2015,388794,600.00,,Km Media Group Limited,KMM001,Operational Services,Revenue,Miscellaneous Expenses,Facilities And Management Serv
http://thanet.gov.uk/supplierspend,Thanet District Council,23/07/2015,388795,600.00,,Km Media Group Limited,KMM001,Operational Services,Revenue,Miscellaneous Expenses,Facilities And Management Serv
http://thanet.gov.uk/supplierspend,Thanet District Council,23/07/2015,389144,780.00,,Komarni,KOM002,Community Services,Revenue,Services,Arts And Leisure Services
http://thanet.gov.uk/supplierspend,Thanet District Council,23/07/2015,389167,3523.72,,Lee Evans Partnership Llp,LEE007,Community Services,Revenue,Services,Consultancy
http://thanet.gov.uk/supplierspend,Thanet District Council,23/07/2015,389168,2500.00,,Lee Evans Partnership Llp,LEE007,Community Services,Revenue,Services,Consultancy
http://thanet.gov.uk/supplierspend,Thanet District Council,23/07/2015,388573,362.60,,Ling Metals Limited,LIN004,Operational Services,Revenue,Cleaning & Domestic Supplies,Environmental Services
http://thanet.gov.uk/supplierspend,Thanet District Council,23/07/2015,388735,33.59,,Lyreco Uk Limited,LYR001,Corporate Resources and S151,Revenue,"Print, Stat And Gen Off Exps",Stationery
http://thanet.gov.uk/supplierspend,Thanet District Council,23/07/2015,388735,115.35,,Lyreco Uk Limited,LYR001,Operational Services,Revenue,"Equip, Furniture And Materials",Stationery
http://thanet.gov.uk/supplierspend,Thanet District Council,23/07/2015,388735,180.25,,Lyreco Uk Limited,LYR001,Operational Services,Revenue,"Print, Stat And Gen Off Exps",Stationery
http://thanet.gov.uk/supplierspend,Thanet District Council,23/07/2015,389129,227.23,,Lyreco Uk Limited,LYR001,Community Services,Revenue,"Print, Stat And Gen Off Exps",Stationery
http://thanet.gov.uk/supplierspend,Thanet District Council,23/07/2015,389129,1.32,,Lyreco Uk Limited,LYR001,East Kent Shared Services,Revenue,"Print, Stat And Gen Off Exps",Stationery
http://thanet.gov.uk/supplierspend,Thanet District Council,23/07/2015,389082,315.00,,Magees Guesthouse,MAG009,Community Services,Revenue,Services,Grants
http://thanet.gov.uk/supplierspend,Thanet District Council,23/07/2015,389123,416.28,,Mears Ltd,MEA003,Community Services,Revenue,"Repairs,  Alter & Mtce - Build",Construction-Repair And Maint
http://thanet.gov.uk/supplierspend,Thanet District Council,23/07/2015,389123,902.54,,Mears Ltd,MEA003,Operational Services,Revenue,"Repairs,  Alter & Mtce - Build",Construction-Repair And Maint
http://thanet.gov.uk/supplierspend,Thanet District Council,23/07/2015,389207,234.22,,Mears Ltd,MEA003,Community Services,Revenue,"Repairs,  Alter & Mtce - Build",Construction-Repair And Maint
http://thanet.gov.uk/supplierspend,Thanet District Council,23/07/2015,389207,154.08,,Mears Ltd,MEA003,Operational Services,Revenue,"Repairs,  Alter & Mtce - Build",Construction-Repair And Maint
http://thanet.gov.uk/supplierspend,Thanet District Council,23/07/2015,389208,292.88,,Mears Ltd,MEA003,Operational Services,Revenue,"Repairs,  Alter & Mtce - Build",Construction-Repair And Maint
http://thanet.gov.uk/supplierspend,Thanet District Council,23/07/2015,389235,40.48,,Mears Ltd,MEA003,Community Services,Revenue,"Repairs,  Alter & Mtce - Build",Construction-Repair And Maint
http://thanet.gov.uk/supplierspend,Thanet District Council,23/07/2015,389235,209.41,,Mears Ltd,MEA003,Operational Services,Revenue,"Repairs,  Alter & Mtce - Build",Construction-Repair And Maint
http://thanet.gov.uk/supplierspend,Thanet District Council,23/07/2015,389236,803.80,,Mears Ltd,MEA003,Community Services,Revenue,"Repairs,  Alter & Mtce - Build",Construction-Repair And Maint
http://thanet.gov.uk/supplierspend,Thanet District Council,23/07/2015,389237,268.12,,Mears Ltd,MEA003,Operational Services,Revenue,"Repairs,  Alter & Mtce - Build",Construction-Repair And Maint
http://thanet.gov.uk/supplierspend,Thanet District Council,23/07/2015,389238,226.40,,Mears Ltd,MEA003,Operational Services,Revenue,"Repairs,  Alter & Mtce - Build",Construction-Repair And Maint
http://thanet.gov.uk/supplierspend,Thanet District Council,23/07/2015,388152,1399.75,,Med Clean South Ltd,MED015,Operational Services,Revenue,"Repairs,  Alter & Mtce - Build",Cleaning And Janitorial
http://thanet.gov.uk/supplierspend,Thanet District Council,23/07/2015,388771,5692.81,,Med Clean South Ltd,MED015,Operational Services,Revenue,Cleaning & Domestic Supplies,Cleaning And Janitorial
http://thanet.gov.uk/supplierspend,Thanet District Council,23/07/2015,388569,582.75,,Morgan Jones Ltd,MOR001,Community Services,Revenue,Agency Staff,Human Resources
http://thanet.gov.uk/supplierspend,Thanet District Council,23/07/2015,389540,338.63,,Morgan Jones Ltd,MOR001,Community Services,Revenue,Agency Staff,Human Resources
http://thanet.gov.uk/supplierspend,Thanet District Council,23/07/2015,388564,1460.00,,Mr Philip Woolfe,WOO030,Operational Services,Revenue,Services,Legal Services
http://thanet.gov.uk/supplierspend,Thanet District Council,23/07/2015,389576,1455.00,,Outset (Uk) Ltd,OUT004,Corporate Resources and S151,Revenue,Services,Legal Services
http://thanet.gov.uk/supplierspend,Thanet District Council,23/07/2015,388744,690.54,,Probrand Ltd,PRO012,East Kent Shared Services,Revenue,Communications & Computing,ICT
http://thanet.gov.uk/supplierspend,Thanet District Council,23/07/2015,389202,1416.00,,Rostrvm Solutions Ltd,ROS019,East Kent Shared Services,Revenue,Communications & Computing,ICT
http://thanet.gov.uk/supplierspend,Thanet District Council,23/07/2015,389302,2454.18,,Royal Mail,ROY004,Community Services,Revenue,Communications & Computing,Mail Services
http://thanet.gov.uk/supplierspend,Thanet District Council,23/07/2015,388113,1721.70,,Sellick Partnership Ltd,SEL011,Corporate Resources and S151,Revenue,Agency Staff,Human Resources
http://thanet.gov.uk/supplierspend,Thanet District Council,23/07/2015,388731,900.00,,Sellick Partnership Ltd,SEL011,Community Services,Revenue,Services,Human Resources
http://thanet.gov.uk/supplierspend,Thanet District Council,23/07/2015,388751,1841.40,,Sellick Partnership Ltd,SEL011,Corporate Resources and S151,Revenue,Agency Staff,Human Resources
http://thanet.gov.uk/supplierspend,Thanet District Council,23/07/2015,389189,900.00,,Sellick Partnership Ltd,SEL011,Community Services,Revenue,Services,Human Resources
http://thanet.gov.uk/supplierspend,Thanet District Council,23/07/2015,389471,854.35,,Sellick Partnership Ltd,SEL011,Corporate Resources and S151,Revenue,Agency Staff,Human Resources
http://thanet.gov.uk/supplierspend,Thanet District Council,23/07/2015,389472,1323.90,,Sellick Partnership Ltd,SEL011,Corporate Resources and S151,Revenue,Agency Staff,Human Resources
http://thanet.gov.uk/supplierspend,Thanet District Council,23/07/2015,388710,6204.96,,Shoreline Surveys Limited,SHO001,Operational Services,Revenue,"Repairs,  Alter & Mtce - Build",Maritime Services
http://thanet.gov.uk/supplierspend,Thanet District Council,23/07/2015,388712,1243.20,,Signway Supplies (Datchet) Limited,SIG013,Operational Services,Revenue,"Repairs,  Alter & Mtce - Build",Highway Equipment And Material
http://thanet.gov.uk/supplierspend,Thanet District Council,23/07/2015,388753,1400.00,,Sjr Pm Solutions Limited,SJR001,East Kent Shared Services,Revenue,Services,ICT
http://thanet.gov.uk/supplierspend,Thanet District Council,23/07/2015,389564,13366.00,,South East Adaptations Limited,SOU026,Corporate Resources and S151,Balance Sheet,Capital Exp-Non Council Assets,Grants
http://thanet.gov.uk/supplierspend,Thanet District Council,23/07/2015,389233,852.75,,South East Employers,SEE001,Corporate Resources and S151,Revenue,Training,Human Resources
http://thanet.gov.uk/supplierspend,Thanet District Council,23/07/2015,388730,1705.00,,South East England Councils,SEE017,Corporate Resources and S151,Revenue,Grants & Subscriptions,Financial Services
http://thanet.gov.uk/supplierspend,Thanet District Council,23/07/2015,389577,2190.00,,Southern Land Services Limited,SOU027,Corporate Resources and S151,Balance Sheet,Capital Exp-Non Council Assets,Grants
http://thanet.gov.uk/supplierspend,Thanet District Council,23/07/2015,389019,360.82,,Southern Water,SWA001,Operational Services,Revenue,Water Services,Utilities
http://thanet.gov.uk/supplierspend,Thanet District Council,23/07/2015,389179,288.57,,Southern Water,SWA001,Operational Services,Revenue,Water Services,Utilities
http://thanet.gov.uk/supplierspend,Thanet District Council,23/07/2015,388766,146.30,,Ssl247 Ltd,SSL001,Community Services,Revenue,Communications & Computing,ICT
http://thanet.gov.uk/supplierspend,Thanet District Council,23/07/2015,388766,292.60,,Ssl247 Ltd,SSL001,East Kent Shared Services,Revenue,Communications & Computing,ICT
http://thanet.gov.uk/supplierspend,Thanet District Council,23/07/2015,389519,17757.95,,Standage & Co Limited,STA058,Corporate Resources and S151,Balance Sheet,Council Dwellings,Construction-Repair And Maint
http://thanet.gov.uk/supplierspend,Thanet District Council,23/07/2015,389520,76658.69,,Standage & Co Limited,STA058,Corporate Resources and S151,Balance Sheet,Council Dwellings,Construction-Repair And Maint
http://thanet.gov.uk/supplierspend,Thanet District Council,23/07/2015,387976,42.26,,Tfa Fuel Services Ltd,TFA003,Operational Services,Revenue,Direct Transport Costs,Utilities
http://thanet.gov.uk/supplierspend,Thanet District Council,23/07/2015,387976,1987.07,,Tfa Fuel Services Ltd,TFA003,Operational Services,Revenue,"Equip, Furniture And Materials",Utilities
http://thanet.gov.uk/supplierspend,Thanet District Council,23/07/2015,388505,45.48,,Tfa Fuel Services Ltd,TFA003,Operational Services,Revenue,Direct Transport Costs,Utilities
http://thanet.gov.uk/supplierspend,Thanet District Council,23/07/2015,388505,4620.20,,Tfa Fuel Services Ltd,TFA003,Operational Services,Revenue,"Equip, Furniture And Materials",Utilities
http://thanet.gov.uk/supplierspend,Thanet District Council,23/07/2015,388716,17.64,,Tfa Fuel Services Ltd,TFA003,Operational Services,Revenue,Direct Transport Costs,Utilities
http://thanet.gov.uk/supplierspend,Thanet District Council,23/07/2015,388716,2997.63,,Tfa Fuel Services Ltd,TFA003,Operational Services,Revenue,"Equip, Furniture And Materials",Utilities
http://thanet.gov.uk/supplierspend,Thanet District Council,23/07/2015,389511,283.11,,Total Supplies Ltd,TOT009,Corporate Resources and S151,Balance Sheet,Cleaning & Domestic Supplies,Cleaning And Janitorial
http://thanet.gov.uk/supplierspend,Thanet District Council,23/07/2015,389215,1500.00,,Trafalgar Cleaning Equipment Ltd,TRA033,Operational Services,Revenue,Cont Hire & Operating Lease,Cleaning And Janitorial
http://thanet.gov.uk/supplierspend,Thanet District Council,23/07/2015,388681,80.67,,Veolia Es (Uk) Ltd,VEO001,Corporate Resources and S151,Balance Sheet,Rechargeable Works,Environmental Services
http://thanet.gov.uk/supplierspend,Thanet District Council,23/07/2015,388681,1689.82,,Veolia Es (Uk) Ltd,VEO001,Operational Services,Revenue,Cleaning & Domestic Supplies,Environmental Services
http://thanet.gov.uk/supplierspend,Thanet District Council,23/07/2015,389150,562.00,,Westbury Industrial Supplies Ltd,WES042,Operational Services,Revenue,"Clothes, Uniforms & Laundry",Clothing
http://thanet.gov.uk/supplierspend,Thanet District Council,23/07/2015,389242,580.00,,Wilks Head & Eve,WIL028,Corporate Resources and S151,Revenue,Services,Consultancy
http://thanet.gov.uk/supplierspend,Thanet District Council,27/07/2015,PC7076,6.98,,123 REG,N/A,Corporate Resources and S151,Revenue,Communications & Computing,ICT
http://thanet.gov.uk/supplierspend,Thanet District Council,27/07/2015,PC7101,10.08,1.68,Amazon,N/A,Operational Services,Revenue,"Equip, Furniture And Materials",Stationery
http://thanet.gov.uk/supplierspend,Thanet District Council,27/07/2015,PC7124,3.98,,Amazon,N/A,Operational Services,Revenue,"Equip, Furniture And Materials",Stationery
http://thanet.gov.uk/supplierspend,Thanet District Council,27/07/2015,PC7095,8.58,,Amazon EU,N/A,East Kent Shared Services,Revenue,"Equip, Furniture And Materials",Stationery
http://thanet.gov.uk/supplierspend,Thanet District Council,27/07/2015,PC7099,168.31,,Amazon Svcs Europe  Sar - First Aid.Co.Uk,N/A,Operational Services,Revenue,"Equip, Furniture And Materials",Stationery
http://thanet.gov.uk/supplierspend,Thanet District Council,27/07/2015,PC7063,28.14,,Amazon UK,N/A,East Kent Shared Services,Revenue,"Print, Stat And Gen Off Exps",Stationery
http://thanet.gov.uk/supplierspend,Thanet District Council,27/07/2015,PC7096,8.00,,Amazon UK,N/A,East Kent Shared Services,Revenue,"Equip, Furniture And Materials",Stationery
http://thanet.gov.uk/supplierspend,Thanet District Council,27/07/2015,PC7097,2.00,,Amazon UK,N/A,East Kent Shared Services,Revenue,"Equip, Furniture And Materials",Stationery
http://thanet.gov.uk/supplierspend,Thanet District Council,27/07/2015,PC7105,13.56,,Amazon UK Marketplace,N/A,East Kent Shared Services,Revenue,"Equip, Furniture And Materials",Stationery
http://thanet.gov.uk/supplierspend,Thanet District Council,27/07/2015,PC7106,3.39,,Amazon UK Marketplace,N/A,East Kent Shared Services,Revenue,"Equip, Furniture And Materials",Stationery
http://thanet.gov.uk/supplierspend,Thanet District Council,27/07/2015,PC7029,45.87,,Amazon UK Retail,N/A,East Kent Shared Services,Revenue,"Equip, Furniture And Materials",Stationery
http://thanet.gov.uk/supplierspend,Thanet District Council,27/07/2015,PC7134,11.11,,Amazon UK Retail,N/A,East Kent Shared Services,Revenue,Communications & Computing,Stationery
http://thanet.gov.uk/supplierspend,Thanet District Council,27/07/2015,PC7115,10.82,,Anker Technology (UK) Ltd,N/A,East Kent Shared Services,Revenue,Communications & Computing,ICT
http://thanet.gov.uk/supplierspend,Thanet District Council,27/07/2015,PC7010,-23.26,,Argos,N/A,Community Services,Revenue,"Equip, Furniture And Materials",Facilities and Management Serv
http://thanet.gov.uk/supplierspend,Thanet District Council,27/07/2015,PC7011,5.41,,Asda,N/A,Community Services,Revenue,"Equip, Furniture And Materials",Catering
http://thanet.gov.uk/supplierspend,Thanet District Council,27/07/2015,PC7004,23.00,,B & Q Direct,N/A,Operational Services,Revenue,Fixtures & Fittings,Building Construction Materials
http://thanet.gov.uk/supplierspend,Thanet District Council,27/07/2015,PC7036,17.58,,Booker Ltd,N/A,Community Services,Revenue,Catering,Catering
http://thanet.gov.uk/supplierspend,Thanet District Council,27/07/2015,PC7037,3.69,,Booker Ltd,N/A,Community Services,Revenue,"Equip, Furniture And Materials",Catering
http://thanet.gov.uk/supplierspend,Thanet District Council,27/07/2015,PC7038,31.86,,Booker Ltd,N/A,Community Services,Revenue,Catering,Catering
http://thanet.gov.uk/supplierspend,Thanet District Council,27/07/2015,PC7060,1.99,,Booker Ltd,N/A,Community Services,Revenue,Catering,Catering
http://thanet.gov.uk/supplierspend,Thanet District Council,27/07/2015,PC7061,53.48,,Booker Ltd,N/A,Community Services,Revenue,Catering,Catering
http://thanet.gov.uk/supplierspend,Thanet District Council,27/07/2015,PC7064,39.27,,Booker Ltd,N/A,Community Services,Revenue,Catering,Catering
http://thanet.gov.uk/supplierspend,Thanet District Council,27/07/2015,PC7065,14.75,,Booker Ltd,N/A,Community Services,Revenue,Catering,Catering
http://thanet.gov.uk/supplierspend,Thanet District Council,27/07/2015,PC7135,45.60,,Comms Express,N/A,Operational Services,Revenue,"Equip, Furniture And Materials",Facilities and Management Serv
http://thanet.gov.uk/supplierspend,Thanet District Council,27/07/2015,PC7121,122.00,,Community Ad Web Ltd,N/A,Community Services,Revenue,Customer And Client Receipts,Facilities and Management Serv
http://thanet.gov.uk/supplierspend,Thanet District Council,27/07/2015,PC7074,42.50,,Debenhams,N/A,Operational Services,Revenue,"Clothes, Uniforms & Laundry",Facilities and Management Serv
http://thanet.gov.uk/supplierspend,Thanet District Council,27/07/2015,PC7113,439.00,,Direct Hygiene,N/A,Operational Services,Revenue,"Equip, Furniture And Materials",Cleaning and Janitorial
http://thanet.gov.uk/supplierspend,Thanet District Council,27/07/2015,PC7066,71.04,,Dog Poop Bags,N/A,Operational Services,Revenue,"Equip, Furniture And Materials",Environmental Services
http://thanet.gov.uk/supplierspend,Thanet District Council,27/07/2015,PC7005,48.88,,Dropbox,N/A,East Kent Shared Services,Revenue,Communications & Computing,ICT
http://thanet.gov.uk/supplierspend,Thanet District Council,27/07/2015,PC7080,652.50,,DVLA,N/A,Operational Services,Revenue,Direct Transport Costs,Various Cats - Public Sector
http://thanet.gov.uk/supplierspend,Thanet District Council,27/07/2015,PC7081,652.50,,DVLA,N/A,Operational Services,Revenue,Direct Transport Costs,Various Cats - Public Sector
http://thanet.gov.uk/supplierspend,Thanet District Council,27/07/2015,PC7082,652.50,,DVLA,N/A,Operational Services,Revenue,Direct Transport Costs,Various Cats - Public Sector
http://thanet.gov.uk/supplierspend,Thanet District Council,27/07/2015,PC7083,652.50,,DVLA,N/A,Operational Services,Revenue,Direct Transport Costs,Various Cats - Public Sector
http://thanet.gov.uk/supplierspend,Thanet District Council,27/07/2015,PC7084,652.50,,DVLA,N/A,Operational Services,Revenue,Direct Transport Costs,Various Cats - Public Sector
http://thanet.gov.uk/supplierspend,Thanet District Council,27/07/2015,PC7085,652.50,,DVLA,N/A,Operational Services,Revenue,Direct Transport Costs,Various Cats - Public Sector
http://thanet.gov.uk/supplierspend,Thanet District Council,27/07/2015,PC7086,652.50,,DVLA,N/A,Operational Services,Revenue,Direct Transport Costs,Various Cats - Public Sector
http://thanet.gov.uk/supplierspend,Thanet District Council,27/07/2015,PC7087,652.50,,DVLA,N/A,Operational Services,Revenue,Direct Transport Costs,Various Cats - Public Sector
http://thanet.gov.uk/supplierspend,Thanet District Council,27/07/2015,PC7088,652.50,,DVLA,N/A,Operational Services,Revenue,Direct Transport Costs,Various Cats - Public Sector
http://thanet.gov.uk/supplierspend,Thanet District Council,27/07/2015,PC7089,652.50,,DVLA,N/A,Operational Services,Revenue,Direct Transport Costs,Various Cats - Public Sector
http://thanet.gov.uk/supplierspend,Thanet District Council,27/07/2015,PC7090,652.50,,DVLA,N/A,Operational Services,Revenue,Direct Transport Costs,Various Cats - Public Sector
http://thanet.gov.uk/supplierspend,Thanet District Council,27/07/2015,PC7091,227.50,,DVLA,N/A,Operational Services,Revenue,Direct Transport Costs,Various Cats - Public Sector
http://thanet.gov.uk/supplierspend,Thanet District Council,27/07/2015,PC7054,16.67,,EV Charging Elektromotive Uk,N/A,Operational Services,Revenue,"Equip, Furniture And Materials",Vehicle Management
http://thanet.gov.uk/supplierspend,Thanet District Council,27/07/2015,PC6994,10.00,,Facebook (Ireland) Uk,N/A,Community Services,Revenue,Miscellaneous Expenses,Facilities and Management Serv
http://thanet.gov.uk/supplierspend,Thanet District Council,27/07/2015,PC7153,605.70,,Firstaid4Less,N/A,Operational Services,Revenue,"Equip, Furniture And Materials",Healthcare
http://thanet.gov.uk/supplierspend,Thanet District Council,27/07/2015,PC7072,4.17,,Halfords,N/A,Operational Services,Revenue,"Equip, Furniture And Materials",Vehicle Management
http://thanet.gov.uk/supplierspend,Thanet District Council,27/07/2015,PC7013,3864.00,,HM Courts,N/A,East Kent Shared Services,Revenue,Services,Various Cats - Public Sector
http://thanet.gov.uk/supplierspend,Thanet District Council,27/07/2015,PC7014,7389.00,,HM Courts,N/A,East Kent Shared Services,Revenue,Services,Various Cats - Public Sector
http://thanet.gov.uk/supplierspend,Thanet District Council,27/07/2015,PC7015,1401.00,,HM Courts,N/A,East Kent Shared Services,Revenue,Services,Various Cats - Public Sector
http://thanet.gov.uk/supplierspend,Thanet District Council,27/07/2015,PC7016,102.00,,HM Courts,N/A,East Kent Shared Services,Revenue,Services,Various Cats - Public Sector
http://thanet.gov.uk/supplierspend,Thanet District Council,27/07/2015,PC7017,291.00,,HM Courts,N/A,East Kent Shared Services,Revenue,Services,Various Cats - Public Sector
http://thanet.gov.uk/supplierspend,Thanet District Council,27/07/2015,PC7018,387.00,,HM Courts,N/A,East Kent Shared Services,Revenue,Services,Various Cats - Public Sector
http://thanet.gov.uk/supplierspend,Thanet District Council,27/07/2015,PC7119,225.00,,HM Courts,N/A,East Kent Shared Services,Revenue,Services,Various Cats - Public Sector
http://thanet.gov.uk/supplierspend,Thanet District Council,27/07/2015,PC7120,225.00,,HM Courts,N/A,East Kent Shared Services,Revenue,Services,Various Cats - Public Sector
http://thanet.gov.uk/supplierspend,Thanet District Council,27/07/2015,PC7163,-150.00,,HM Courts,N/A,East Kent Shared Services,Revenue,Services,Various Cats - Public Sector
http://thanet.gov.uk/supplierspend,Thanet District Council,27/07/2015,PC7098,66.58,,Hobbycraft,N/A,Community Services,Revenue,"Equip, Furniture And Materials",Stationery
http://thanet.gov.uk/supplierspend,Thanet District Council,27/07/2015,PC7012,2.36,,Homebase,N/A,Community Services,Revenue,"Equip, Furniture And Materials",Building Construction Materials
http://thanet.gov.uk/supplierspend,Thanet District Council,27/07/2015,PC7062,309.60,,Inscale Ltd,N/A,Operational Services,Revenue,"Equip, Furniture And Materials",Maritime Services
http://thanet.gov.uk/supplierspend,Thanet District Council,27/07/2015,PC7137,30.00,5.00,Kens Bike Shop,N/A,Community Services,Revenue,"Equip, Furniture And Materials",Public Transport
http://thanet.gov.uk/supplierspend,Thanet District Council,27/07/2015,PC7052,15.20,,London & South Eastern,N/A,Operational Services,Revenue,Public Transport,Human Resources
http://thanet.gov.uk/supplierspend,Thanet District Council,27/07/2015,PC7047,399.00,,Machine Mart Ltd ,N/A,Operational Services,Revenue,"Equip, Furniture And Materials",Building Construction Materials
http://thanet.gov.uk/supplierspend,Thanet District Council,27/07/2015,PC7116,2.49,,Maplin,N/A,Community Services,Revenue,"Equip, Furniture And Materials",Building Construction Materials
http://thanet.gov.uk/supplierspend,Thanet District Council,27/07/2015,PC7117,4.98,,Maplin,N/A,Community Services,Revenue,"Equip, Furniture And Materials",Building Construction Materials
http://thanet.gov.uk/supplierspend,Thanet District Council,27/07/2015,PC7151,4.98,,Maplin,N/A,Community Services,Revenue,"Equip, Furniture And Materials",Building Construction Materials
http://thanet.gov.uk/supplierspend,Thanet District Council,27/07/2015,PC7073,122.50,20.42,Marks And Spencer,N/A,Operational Services,Revenue,"Clothes, Uniforms & Laundry",Facilities and Management Serv
http://thanet.gov.uk/supplierspend,Thanet District Council,27/07/2015,PC7128,41.45,,Martells Ltd,N/A,Operational Services,Revenue,"Equip, Furniture And Materials",Stationery
http://thanet.gov.uk/supplierspend,Thanet District Council,27/07/2015,PC7110,105.00,,Money Claims Online,N/A,Operational Services,Revenue,Services,Various Cats - Public Sector
http://thanet.gov.uk/supplierspend,Thanet District Council,27/07/2015,PC7130,5.00,,Morrisons,N/A,East Kent Shared Services,Revenue,Catering,Catering
http://thanet.gov.uk/supplierspend,Thanet District Council,27/07/2015,PC7131,4.99,,Morrisons,N/A,East Kent Shared Services,Revenue,Catering,Catering
http://thanet.gov.uk/supplierspend,Thanet District Council,27/07/2015,PC7132,3.46,,Morrisons,N/A,East Kent Shared Services,Revenue,Catering,Catering
http://thanet.gov.uk/supplierspend,Thanet District Council,27/07/2015,PC7133,2.97,,Morrisons,N/A,East Kent Shared Services,Revenue,Catering,Catering
http://thanet.gov.uk/supplierspend,Thanet District Council,27/07/2015,PC7020,298.80,,National Windscreens,N/A,Operational Services,Revenue,Direct Transport Costs,Vehicle Management
http://thanet.gov.uk/supplierspend,Thanet District Council,27/07/2015,PC7067,145.00,,National Windscreens,N/A,Operational Services,Revenue,Direct Transport Costs,Vehicle Management
http://thanet.gov.uk/supplierspend,Thanet District Council,27/07/2015,PC7051,112.50,,Plastic- Id .Com,N/A,Community Services,Revenue,"Equip, Furniture And Materials",Stationery
http://thanet.gov.uk/supplierspend,Thanet District Council,27/07/2015,PC7032,250.00,,Possession Claims Online,N/A,Community Services,Revenue,Services,Various Cats - Public Sector
http://thanet.gov.uk/supplierspend,Thanet District Council,27/07/2015,PC7048,250.00,,Possession Claims Online,N/A,Community Services,Revenue,Services,Various Cats - Public Sector
http://thanet.gov.uk/supplierspend,Thanet District Council,27/07/2015,PC7056,250.00,,Possession Claims Online,N/A,Community Services,Revenue,Services,Various Cats - Public Sector
http://thanet.gov.uk/supplierspend,Thanet District Council,27/07/2015,PC7057,250.00,,Possession Claims Online,N/A,Community Services,Revenue,Services,Various Cats - Public Sector
http://thanet.gov.uk/supplierspend,Thanet District Council,27/07/2015,PC7059,110.00,,Possession Claims Online,N/A,Community Services,Revenue,Services,Various Cats - Public Sector
http://thanet.gov.uk/supplierspend,Thanet District Council,27/07/2015,PC7077,110.00,,Possession Claims Online,N/A,Community Services,Revenue,Services,Various Cats - Public Sector
http://thanet.gov.uk/supplierspend,Thanet District Council,27/07/2015,PC7123,250.00,,Possession Claims Online,N/A,Community Services,Revenue,Services,Various Cats - Public Sector
http://thanet.gov.uk/supplierspend,Thanet District Council,27/07/2015,PC7127,250.00,,Possession Claims Online,N/A,Community Services,Revenue,Services,Various Cats - Public Sector
http://thanet.gov.uk/supplierspend,Thanet District Council,27/07/2015,PC7164,110.00,,Possession Claims Online,N/A,Community Services,Revenue,Services,Various Cats - Public Sector
http://thanet.gov.uk/supplierspend,Thanet District Council,27/07/2015,PC7104,260.00,,RBI QSS Subs,N/A,Community Services,Revenue,"Print, Stat And Gen Off Exps",Financial Services
http://thanet.gov.uk/supplierspend,Thanet District Council,27/07/2015,PC7138,25.29,2.17,Royal Albion Hotel,N/A,Community Services,Revenue,Catering,Human Resources
http://thanet.gov.uk/supplierspend,Thanet District Council,27/07/2015,PC7030,76.00,12.66,Royal Maritime Club Hotel,N/A,East Kent Shared Services,Revenue,Expenses,Human Resources
http://thanet.gov.uk/supplierspend,Thanet District Council,27/07/2015,PC7046,214.97,,Screwfix Direct,N/A,Operational Services,Revenue,"Clothes, Uniforms & Laundry",Building Construction Materials
http://thanet.gov.uk/supplierspend,Thanet District Council,27/07/2015,PC7078,42.99,,Screwfix Direct,N/A,Operational Services,Revenue,"Clothes, Uniforms & Laundry",Building Construction Materials
http://thanet.gov.uk/supplierspend,Thanet District Council,27/07/2015,PC7079,195.83,,Screwfix Direct,N/A,Operational Services,Revenue,"Equip, Furniture And Materials",Building Construction Materials
http://thanet.gov.uk/supplierspend,Thanet District Council,27/07/2015,PC7092,39.99,,Screwfix Direct,N/A,Operational Services,Revenue,"Clothes, Uniforms & Laundry",Building Construction Materials
http://thanet.gov.uk/supplierspend,Thanet District Council,27/07/2015,PC7053,11.09,1.85,Standfast,N/A,Operational Services,Revenue,"Equip, Furniture And Materials",Facilities and Management Serv
http://thanet.gov.uk/supplierspend,Thanet District Council,27/07/2015,PC7044,208.99,34.83,Tesco Direct,N/A,Operational Services,Revenue,"Equip, Furniture And Materials",Domestic Goods
http://thanet.gov.uk/supplierspend,Thanet District Council,27/07/2015,PC7045,209.00,34.84,Tesco Direct,N/A,Operational Services,Revenue,"Equip, Furniture And Materials",Catering
http://thanet.gov.uk/supplierspend,Thanet District Council,27/07/2015,PC7150,8.17,,Tesco Extra,N/A,Community Services,Revenue,Catering,Domestic Goods
http://thanet.gov.uk/supplierspend,Thanet District Council,27/07/2015,PC7033,110.00,,Thanet County Court,N/A,Community Services,Revenue,Services,Various Cats - Public Sector
http://thanet.gov.uk/supplierspend,Thanet District Council,27/07/2015,PC7111,280.00,,Thanet County Court,N/A,Community Services,Revenue,Services,Various Cats - Public Sector
http://thanet.gov.uk/supplierspend,Thanet District Council,27/07/2015,PC7043,210.00,,The Happy Dolphin Guesthouse,N/A,Community Services,Revenue,Services,Human Resources
http://thanet.gov.uk/supplierspend,Thanet District Council,27/07/2015,PC7071,137.50,,The Lowry Hotel,N/A,Chief Executive,Revenue,Expenses,Human Resources
http://thanet.gov.uk/supplierspend,Thanet District Council,27/07/2015,PC7093,87.50,,The Majestic Hotel  Harrogate,N/A,Chief Executive,Revenue,Expenses,Human Resources
http://thanet.gov.uk/supplierspend,Thanet District Council,27/07/2015,PC7094,258.33,,The Majestic Hotel  Harrogate,N/A,Chief Executive,Revenue,Expenses,Human Resources
http://thanet.gov.uk/supplierspend,Thanet District Council,27/07/2015,PC7055,12.98,,The Range,N/A,Community Services,Revenue,"Equip, Furniture And Materials",Facilities and Management Serv
http://thanet.gov.uk/supplierspend,Thanet District Council,27/07/2015,PC7069,11.68,,Toolstation,N/A,Community Services,Revenue,"Equip, Furniture And Materials",Building Construction Materials
http://thanet.gov.uk/supplierspend,Thanet District Council,27/07/2015,PC7070,182.87,,Toolstation,N/A,Community Services,Revenue,"Equip, Furniture And Materials",Building Construction Materials
http://thanet.gov.uk/supplierspend,Thanet District Council,27/07/2015,PC7031,11.00,,Tunbridge Wells Registry Office,N/A,East Kent Shared Services,Revenue,"Print, Stat And Gen Off Exps",Various Cats - Public Sector
http://thanet.gov.uk/supplierspend,Thanet District Council,27/07/2015,PC7049,11.00,,Tunbridge Wells Registry Office,N/A,East Kent Shared Services,Revenue,"Print, Stat And Gen Off Exps",Various Cats - Public Sector
http://thanet.gov.uk/supplierspend,Thanet District Council,27/07/2015,PC7050,22.00,,Tunbridge Wells Registry Office,N/A,East Kent Shared Services,Revenue,"Print, Stat And Gen Off Exps",Various Cats - Public Sector
http://thanet.gov.uk/supplierspend,Thanet District Council,27/07/2015,PC7162,-11.00,,Tunbridge Wells Registry Office,N/A,East Kent Shared Services,Revenue,"Print, Stat And Gen Off Exps",Various Cats - Public Sector
http://thanet.gov.uk/supplierspend,Thanet District Council,27/07/2015,PC7028,145.50,,TV Licensing,N/A,Operational Services,Revenue,Services,Various Cats - Public Sector
http://thanet.gov.uk/supplierspend,Thanet District Council,27/07/2015,PC7109,273.80,,Virgin Trains,N/A,East Kent Shared Services,Revenue,Public Transport,Human Resources
http://thanet.gov.uk/supplierspend,Thanet District Council,27/07/2015,PC7126,127.80,,Virgin Trains,N/A,East Kent Shared Services,Revenue,Public Transport,Human Resources
http://thanet.gov.uk/supplierspend,Thanet District Council,27/07/2015,PC7007,78.90,,Webtis,N/A,Corporate Resources and S151,Revenue,Public Transport,Human Resources
http://thanet.gov.uk/supplierspend,Thanet District Council,27/07/2015,PC7035,21.80,,Webtis,N/A,Community Services,Revenue,Public Transport,Human Resources
http://thanet.gov.uk/supplierspend,Thanet District Council,27/07/2015,PC7042,31.40,,Webtis,N/A,Community Services,Revenue,Public Transport,Human Resources
http://thanet.gov.uk/supplierspend,Thanet District Council,27/07/2015,PC7058,134.20,,Webtis,N/A,Operational Services,Revenue,Public Transport,Human Resources
http://thanet.gov.uk/supplierspend,Thanet District Council,27/07/2015,PC7068,20.20,,Webtis,N/A,East Kent Shared Services,Revenue,Public Transport,Human Resources
http://thanet.gov.uk/supplierspend,Thanet District Council,27/07/2015,PC7075,26.40,,Webtis,N/A,Corporate Resources and S151,Revenue,Public Transport,Human Resources
http://thanet.gov.uk/supplierspend,Thanet District Council,27/07/2015,PC7103,-18.20,,Webtis,N/A,East Kent Shared Services,Revenue,Public Transport,Human Resources
http://thanet.gov.uk/supplierspend,Thanet District Council,27/07/2015,PC7107,36.20,,Webtis,N/A,Community Services,Revenue,Public Transport,Human Resources
http://thanet.gov.uk/supplierspend,Thanet District Council,27/07/2015,PC7108,24.00,,Webtis,N/A,Community Services,Revenue,Public Transport,Human Resources
http://thanet.gov.uk/supplierspend,Thanet District Council,27/07/2015,PC7118,31.70,,Webtis,N/A,Community Services,Revenue,Public Transport,Human Resources
http://thanet.gov.uk/supplierspend,Thanet District Council,27/07/2015,PC7100,9.97,1.67,WH Smith  Margate,N/A,Chief Executive,Revenue,"Print, Stat And Gen Off Exps",Stationery
http://thanet.gov.uk/supplierspend,Thanet District Council,27/07/2015,PC7102,38.80,,Wightlink.co.uk,N/A,East Kent Shared Services,Revenue,Expenses,Human Resources
http://thanet.gov.uk/supplierspend,Thanet District Council,28/07/2015,389498,596.00,,Adams Homecentre Ltd,ADA006,Operational Services,Revenue,"Equip, Furniture And Materials",Building Construction Material
http://thanet.gov.uk/supplierspend,Thanet District Council,28/07/2015,389286,11200.00,,Aecom Infastructure & Env Uk Ltd,AEC002,Corporate Resources and S151,Balance Sheet,Other Land And Buildings-Hra,Consultancy
http://thanet.gov.uk/supplierspend,Thanet District Council,28/07/2015,387451,450.00,,All Sign Solutions Ltd,ALL002,Community Services,Revenue,Grants & Subscriptions,Building Construction Material
http://thanet.gov.uk/supplierspend,Thanet District Council,28/07/2015,389742,534.73,,Allstar Business Solutions Ltd,ALL038,Operational Services,Revenue,Direct Transport Costs,Vehicle Management
http://thanet.gov.uk/supplierspend,Thanet District Council,28/07/2015,389287,260.00,,Amber Driver Training,AMB004,Operational Services,Revenue,Training,Human Resources
http://thanet.gov.uk/supplierspend,Thanet District Council,28/07/2015,389814,61000.00,,Amusement Technical Rentals Limited,AMU001,Corporate Resources and S151,Balance Sheet,Other Land And Buildings-Hra,Arts And Leisure Services
http://thanet.gov.uk/supplierspend,Thanet District Council,28/07/2015,389544,566.55,,Ate (Uk) Limited,ANG014,Operational Services,Revenue,Direct Transport Costs,Vehicle Management
http://thanet.gov.uk/supplierspend,Thanet District Council,28/07/2015,389712,350.00,,Capita Business Services Ltd,CAP001,Community Services,Revenue,Expenses,Human Resources
http://thanet.gov.uk/supplierspend,Thanet District Council,28/07/2015,389475,316.62,,Channel Commercials Plc,CCO001,Operational Services,Revenue,Direct Transport Costs,Vehicle Management
http://thanet.gov.uk/supplierspend,Thanet District Council,28/07/2015,389801,359.21,,Channel Commercials Plc,CCO001,Operational Services,Revenue,Direct Transport Costs,Vehicle Management
http://thanet.gov.uk/supplierspend,Thanet District Council,28/07/2015,389725,645500.62,,Coombs (Canterbury) Ltd,COO033,Corporate Resources and S151,Balance Sheet,Other Land And Buildings-Hra,Construction-Repair And Maint
http://thanet.gov.uk/supplierspend,Thanet District Council,28/07/2015,389513,424.58,,Dennis Eagle Ltd,DEN005,Operational Services,Revenue,Direct Transport Costs,Vehicle Management
http://thanet.gov.uk/supplierspend,Thanet District Council,28/07/2015,389514,424.58,,Dennis Eagle Ltd,DEN005,Operational Services,Revenue,Direct Transport Costs,Vehicle Management
http://thanet.gov.uk/supplierspend,Thanet District Council,28/07/2015,389556,481.30,,Dennis Eagle Ltd,DEN005,Operational Services,Revenue,Direct Transport Costs,Vehicle Management
http://thanet.gov.uk/supplierspend,Thanet District Council,28/07/2015,389531,636.58,,E Saunders Margate Ltd,SAU001,Community Services,Revenue,"Repairs,  Alter & Mtce - Build",Construction-Repair And Maint
http://thanet.gov.uk/supplierspend,Thanet District Council,28/07/2015,389532,655.85,,E Saunders Margate Ltd,SAU001,Community Services,Revenue,"Repairs,  Alter & Mtce - Build",Construction-Repair And Maint
http://thanet.gov.uk/supplierspend,Thanet District Council,28/07/2015,389533,344.74,,E Saunders Margate Ltd,SAU001,Operational Services,Revenue,"Repairs,  Alter & Mtce - Build",Construction-Repair And Maint
http://thanet.gov.uk/supplierspend,Thanet District Council,28/07/2015,389575,355.46,,G & G Forklifts,GGF001,Operational Services,Revenue,"Equip, Furniture And Materials",Vehicle Management
http://thanet.gov.uk/supplierspend,Thanet District Council,28/07/2015,389058,2048.00,,Gas Contract Services Ltd,GAS004,Corporate Resources and S151,Balance Sheet,Repairs And Mtce Holding A/C,Construction-Repair And Maint
http://thanet.gov.uk/supplierspend,Thanet District Council,28/07/2015,389565,780.00,,Gerlack & Thorne Ltd,GER001,Operational Services,Revenue,"Repairs,  Alter & Mtce - Build",Construction-Repair And Maint
http://thanet.gov.uk/supplierspend,Thanet District Council,28/07/2015,389566,2100.00,,Gerlack & Thorne Ltd,GER001,Community Services,Revenue,"Repairs,  Alter & Mtce - Build",Construction-Repair And Maint
http://thanet.gov.uk/supplierspend,Thanet District Council,28/07/2015,389483,770.00,,Gulliver'S Truck Hire Limited,GUL001,Operational Services,Revenue,Cont Hire & Operating Lease,Vehicle Management
http://thanet.gov.uk/supplierspend,Thanet District Council,28/07/2015,389808,770.00,,Gulliver'S Truck Hire Limited,GUL001,Operational Services,Revenue,Cont Hire & Operating Lease,Vehicle Management
http://thanet.gov.uk/supplierspend,Thanet District Council,28/07/2015,389482,675.00,,Hbinfo Limited,HBI001,East Kent Shared Services,Revenue,Expenses,Financial Services
http://thanet.gov.uk/supplierspend,Thanet District Council,28/07/2015,389241,3720.00,,Hemming Group Limited,HEM002,Corporate Resources and S151,Revenue,Advertising Expenses,Financial Services
http://thanet.gov.uk/supplierspend,Thanet District Council,28/07/2015,389241,1240.00,,Hemming Group Limited,HEM002,Community Services,Revenue,Advertising Expenses,Financial Services
http://thanet.gov.uk/supplierspend,Thanet District Council,28/07/2015,389241,1240.00,,Hemming Group Limited,HEM002,Operational Services,Revenue,Advertising Expenses,Financial Services
http://thanet.gov.uk/supplierspend,Thanet District Council,28/07/2015,389538,650.00,,Hi Way Services Ltd,HIW002,Operational Services,Revenue,"Repairs,  Alter & Mtce - Build",Highway Equipment And Material
http://thanet.gov.uk/supplierspend,Thanet District Council,28/07/2015,389305,949.00,,High Five Training Limited,HIG009,Operational Services,Revenue,Training,Human Resources
http://thanet.gov.uk/supplierspend,Thanet District Council,28/07/2015,389060,545.00,,Holt & Wotton Ltd,HOL001,Corporate Resources and S151,Balance Sheet,Repairs And Mtce Holding A/C,Building Construction Material
http://thanet.gov.uk/supplierspend,Thanet District Council,28/07/2015,389719,566.70,,Hr Go Recruitment Ltd,HRG002,Operational Services,Revenue,Agency Staff,Human Resources
http://thanet.gov.uk/supplierspend,Thanet District Council,28/07/2015,389720,860.20,,Hr Go Recruitment Ltd,HRG002,Operational Services,Revenue,Agency Staff,Human Resources
http://thanet.gov.uk/supplierspend,Thanet District Council,28/07/2015,389721,1060.50,,Hr Go Recruitment Ltd,HRG002,Operational Services,Revenue,Agency Staff,Human Resources
http://thanet.gov.uk/supplierspend,Thanet District Council,28/07/2015,389724,1386.80,,Hr Go Recruitment Ltd,HRG002,Operational Services,Revenue,Agency Staff,Human Resources
http://thanet.gov.uk/supplierspend,Thanet District Council,28/07/2015,388673,2498.31,,Hydro-Cleansing Ltd,HYD012,Operational Services,Revenue,"Repairs,  Alter & Mtce - Build",Building Construction Material
http://thanet.gov.uk/supplierspend,Thanet District Council,28/07/2015,389536,1294.00,,Invicta Storage Systems Ltd,INV001,Community Services,Revenue,"Repairs,  Alter & Mtce - Build",Building Construction Material
http://thanet.gov.uk/supplierspend,Thanet District Council,28/07/2015,389709,2240.00,,Japanese Knotweed Limited,JAP001,Corporate Resources and S151,Balance Sheet,Other Land And Buildings-Hra,Consultancy
http://thanet.gov.uk/supplierspend,Thanet District Council,28/07/2015,389499,2400.00,,Jump It Recruitment Solutions Ltd,JUM001,East Kent Shared Services,Revenue,Agency Staff,Human Resources
http://thanet.gov.uk/supplierspend,Thanet District Council,28/07/2015,389571,40800.00,,Kent Police & Crime Commissioner,KPC002,Community Services,Revenue,Grants & Subscriptions,Facilities And Management Serv
http://thanet.gov.uk/supplierspend,Thanet District Council,28/07/2015,389284,340.25,,Kt Fire Protection Ltd,KTF001,Community Services,Revenue,"Repairs,  Alter & Mtce - Build",Health And Safety
http://thanet.gov.uk/supplierspend,Thanet District Council,28/07/2015,389545,2325.27,,Lobster Van Hire Ltd,LOB001,Operational Services,Revenue,Cont Hire & Operating Lease,Vehicle Management
http://thanet.gov.uk/supplierspend,Thanet District Council,28/07/2015,389298,559.32,,Loomis Uk Ltd,LOO002,Operational Services,Revenue,Services,Financial Services
http://thanet.gov.uk/supplierspend,Thanet District Council,28/07/2015,389332,270.00,,M D Electrics,MDE001,Community Services,Revenue,"Repairs,  Alter & Mtce - Build",Building Construction Material
http://thanet.gov.uk/supplierspend,Thanet District Council,28/07/2015,388774,23205.97,,Mears Ltd,MEA003,Corporate Resources and S151,Balance Sheet,Repairs And Mtce Holding A/C,Construction-Repair And Maint
http://thanet.gov.uk/supplierspend,Thanet District Council,28/07/2015,388775,10669.48,,Mears Ltd,MEA003,Corporate Resources and S151,Balance Sheet,Repairs And Mtce Holding A/C,Construction-Repair And Maint
http://thanet.gov.uk/supplierspend,Thanet District Council,28/07/2015,388776,21491.89,,Mears Ltd,MEA003,Corporate Resources and S151,Balance Sheet,Repairs And Mtce Holding A/C,Construction-Repair And Maint
http://thanet.gov.uk/supplierspend,Thanet District Council,28/07/2015,388777,2948.62,,Mears Ltd,MEA003,Corporate Resources and S151,Balance Sheet,Repairs And Mtce Holding A/C,Construction-Repair And Maint
http://thanet.gov.uk/supplierspend,Thanet District Council,28/07/2015,389054,294.94,,Mears Ltd,MEA003,Corporate Resources and S151,Balance Sheet,Repairs And Mtce Holding A/C,Construction-Repair And Maint
http://thanet.gov.uk/supplierspend,Thanet District Council,28/07/2015,389476,1030.36,,Mears Ltd,MEA003,Community Services,Revenue,"Repairs,  Alter & Mtce - Build",Construction-Repair And Maint
http://thanet.gov.uk/supplierspend,Thanet District Council,28/07/2015,389548,11949.68,,Mears Ltd,MEA003,Corporate Resources and S151,Balance Sheet,Repairs And Mtce Holding A/C,Construction-Repair And Maint
http://thanet.gov.uk/supplierspend,Thanet District Council,28/07/2015,389549,21933.56,,Mears Ltd,MEA003,Corporate Resources and S151,Balance Sheet,Repairs And Mtce Holding A/C,Construction-Repair And Maint
http://thanet.gov.uk/supplierspend,Thanet District Council,28/07/2015,389550,11931.18,,Mears Ltd,MEA003,Corporate Resources and S151,Balance Sheet,Repairs And Mtce Holding A/C,Construction-Repair And Maint
http://thanet.gov.uk/supplierspend,Thanet District Council,28/07/2015,389059,11498.41,,Ocs Group Uk Ltd T/A Fountains,OCS005,Corporate Resources and S151,Balance Sheet,Repairs And Mtce Holding A/C,Cleaning And Janitorial
http://thanet.gov.uk/supplierspend,Thanet District Council,28/07/2015,389481,300.00,,P G Platforms Limited,PGP001,Operational Services,Revenue,"Equip, Furniture And Materials",Construction-Repair And Maint
http://thanet.gov.uk/supplierspend,Thanet District Council,28/07/2015,389568,90.00,,Parkeon Limited,PAR063,Community Services,Revenue,"Equip, Furniture And Materials",Street And Traffic Management
http://thanet.gov.uk/supplierspend,Thanet District Council,28/07/2015,389568,738.50,,Parkeon Limited,PAR063,Operational Services,Revenue,"Equip, Furniture And Materials",Street And Traffic Management
http://thanet.gov.uk/supplierspend,Thanet District Council,28/07/2015,389468,300.00,,R J Broadley Tree Surgery,RJB002,Corporate Resources and S151,Balance Sheet,Repairs And Mtce Holding A/C,Horticultural
http://thanet.gov.uk/supplierspend,Thanet District Council,28/07/2015,389469,300.00,,R J Broadley Tree Surgery,RJB002,Corporate Resources and S151,Balance Sheet,Repairs And Mtce Holding A/C,Horticultural
http://thanet.gov.uk/supplierspend,Thanet District Council,28/07/2015,389470,450.00,,R J Broadley Tree Surgery,RJB002,Operational Services,Revenue,Grounds Mtce Costs,Horticultural
http://thanet.gov.uk/supplierspend,Thanet District Council,28/07/2015,389707,800.00,,R J Broadley Tree Surgery,RJB002,Operational Services,Revenue,Grounds Mtce Costs,Horticultural
http://thanet.gov.uk/supplierspend,Thanet District Council,28/07/2015,389279,7500.00,,Rostrvm Solutions Ltd,ROS019,East Kent Shared Services,Revenue,Communications & Computing,ICT
http://thanet.gov.uk/supplierspend,Thanet District Council,28/07/2015,389543,1229.66,,Sgw Safety & Security Limited,SGW001,Corporate Resources and S151,Balance Sheet,Plant And Equipment,Consultancy
http://thanet.gov.uk/supplierspend,Thanet District Council,28/07/2015,389574,15753.00,,Siemens Plc,SIE002,Operational Services,Revenue,"Equip, Furniture And Materials",Facilities And Management Serv
http://thanet.gov.uk/supplierspend,Thanet District Council,28/07/2015,389474,1400.00,,Sjr Pm Solutions Limited,SJR001,East Kent Shared Services,Revenue,Services,ICT
http://thanet.gov.uk/supplierspend,Thanet District Council,28/07/2015,389746,1125.00,,Solent Marine Ltd,SOL011,Operational Services,Revenue,"Repairs,  Alter & Mtce - Build",Maritime Services
http://thanet.gov.uk/supplierspend,Thanet District Council,28/07/2015,389280,227.52,,Sparshatts Of Kent Ltd,SPA008,Operational Services,Revenue,Direct Transport Costs,Vehicle Management
http://thanet.gov.uk/supplierspend,Thanet District Council,28/07/2015,389294,329.31,,Sparshatts Of Kent Ltd,SPA008,Operational Services,Revenue,Direct Transport Costs,Vehicle Management
http://thanet.gov.uk/supplierspend,Thanet District Council,28/07/2015,388500,9250.00,,Spider Project Management Ltd,SPI009,Corporate Resources and S151,Balance Sheet,Investment Property For Lease,Consultancy
http://thanet.gov.uk/supplierspend,Thanet District Council,28/07/2015,389103,490.00,,Stagecoach Services Limited,STA023,Corporate Resources and S151,Balance Sheet,Staff Bus Permits Holding A/C,Public Transport
http://thanet.gov.uk/supplierspend,Thanet District Council,28/07/2015,389104,490.00,,Stagecoach Services Limited,STA023,Corporate Resources and S151,Balance Sheet,Staff Bus Permits Holding A/C,Public Transport
http://thanet.gov.uk/supplierspend,Thanet District Council,28/07/2015,389152,495.00,,Straight Manufacturing Limited,STR038,Operational Services,Revenue,"Equip, Furniture And Materials",Environmental Services
http://thanet.gov.uk/supplierspend,Thanet District Council,28/07/2015,389329,679.00,,Streetmaster (S.Wales) Limited,STR001,Operational Services,Revenue,"Equip, Furniture And Materials",Highway Equipment And Material
http://thanet.gov.uk/supplierspend,Thanet District Council,28/07/2015,388148,25133.94,,Swale Heating Ltd,SWA006,Corporate Resources and S151,Balance Sheet,Repairs And Mtce Holding A/C,Building Construction Material
http://thanet.gov.uk/supplierspend,Thanet District Council,28/07/2015,388149,2357.00,,Swale Heating Ltd,SWA006,Corporate Resources and S151,Balance Sheet,Repairs And Mtce Holding A/C,Building Construction Material
http://thanet.gov.uk/supplierspend,Thanet District Council,28/07/2015,388157,1559.31,,Swale Heating Ltd,SWA006,Corporate Resources and S151,Balance Sheet,Repairs And Mtce Holding A/C,Building Construction Material
http://thanet.gov.uk/supplierspend,Thanet District Council,28/07/2015,388161,1558.30,,Swale Heating Ltd,SWA006,Corporate Resources and S151,Balance Sheet,Repairs And Mtce Holding A/C,Building Construction Material
http://thanet.gov.uk/supplierspend,Thanet District Council,28/07/2015,388162,1558.30,,Swale Heating Ltd,SWA006,Corporate Resources and S151,Balance Sheet,Repairs And Mtce Holding A/C,Building Construction Material
http://thanet.gov.uk/supplierspend,Thanet District Council,28/07/2015,388163,1451.99,,Swale Heating Ltd,SWA006,Corporate Resources and S151,Balance Sheet,Repairs And Mtce Holding A/C,Building Construction Material
http://thanet.gov.uk/supplierspend,Thanet District Council,28/07/2015,388165,2011.87,,Swale Heating Ltd,SWA006,Corporate Resources and S151,Balance Sheet,Repairs And Mtce Holding A/C,Building Construction Material
http://thanet.gov.uk/supplierspend,Thanet District Council,28/07/2015,388167,1469.68,,Swale Heating Ltd,SWA006,Corporate Resources and S151,Balance Sheet,Repairs And Mtce Holding A/C,Building Construction Material
http://thanet.gov.uk/supplierspend,Thanet District Council,28/07/2015,388174,1657.00,,Swale Heating Ltd,SWA006,Corporate Resources and S151,Balance Sheet,Repairs And Mtce Holding A/C,Building Construction Material
http://thanet.gov.uk/supplierspend,Thanet District Council,28/07/2015,388176,2024.08,,Swale Heating Ltd,SWA006,Corporate Resources and S151,Balance Sheet,Repairs And Mtce Holding A/C,Building Construction Material
http://thanet.gov.uk/supplierspend,Thanet District Council,28/07/2015,388180,1689.93,,Swale Heating Ltd,SWA006,Corporate Resources and S151,Balance Sheet,Repairs And Mtce Holding A/C,Building Construction Material
http://thanet.gov.uk/supplierspend,Thanet District Council,28/07/2015,388183,1927.88,,Swale Heating Ltd,SWA006,Corporate Resources and S151,Balance Sheet,Repairs And Mtce Holding A/C,Building Construction Material
http://thanet.gov.uk/supplierspend,Thanet District Council,28/07/2015,388185,1796.25,,Swale Heating Ltd,SWA006,Corporate Resources and S151,Balance Sheet,Repairs And Mtce Holding A/C,Building Construction Material
http://thanet.gov.uk/supplierspend,Thanet District Council,28/07/2015,388186,1558.30,,Swale Heating Ltd,SWA006,Corporate Resources and S151,Balance Sheet,Repairs And Mtce Holding A/C,Building Construction Material
http://thanet.gov.uk/supplierspend,Thanet District Council,28/07/2015,388187,1796.25,,Swale Heating Ltd,SWA006,Corporate Resources and S151,Balance Sheet,Repairs And Mtce Holding A/C,Building Construction Material
http://thanet.gov.uk/supplierspend,Thanet District Council,28/07/2015,388188,1558.30,,Swale Heating Ltd,SWA006,Corporate Resources and S151,Balance Sheet,Repairs And Mtce Holding A/C,Building Construction Material
http://thanet.gov.uk/supplierspend,Thanet District Council,28/07/2015,388190,1826.63,,Swale Heating Ltd,SWA006,Corporate Resources and S151,Balance Sheet,Repairs And Mtce Holding A/C,Building Construction Material
http://thanet.gov.uk/supplierspend,Thanet District Council,28/07/2015,388205,1689.93,,Swale Heating Ltd,SWA006,Corporate Resources and S151,Balance Sheet,Repairs And Mtce Holding A/C,Building Construction Material
http://thanet.gov.uk/supplierspend,Thanet District Council,28/07/2015,388206,1427.68,,Swale Heating Ltd,SWA006,Corporate Resources and S151,Balance Sheet,Repairs And Mtce Holding A/C,Building Construction Material
http://thanet.gov.uk/supplierspend,Thanet District Council,28/07/2015,388207,1927.88,,Swale Heating Ltd,SWA006,Corporate Resources and S151,Balance Sheet,Repairs And Mtce Holding A/C,Building Construction Material
http://thanet.gov.uk/supplierspend,Thanet District Council,28/07/2015,388208,1927.88,,Swale Heating Ltd,SWA006,Corporate Resources and S151,Balance Sheet,Repairs And Mtce Holding A/C,Building Construction Material
http://thanet.gov.uk/supplierspend,Thanet District Council,28/07/2015,388209,1796.25,,Swale Heating Ltd,SWA006,Corporate Resources and S151,Balance Sheet,Repairs And Mtce Holding A/C,Building Construction Material
http://thanet.gov.uk/supplierspend,Thanet District Council,28/07/2015,388210,1927.88,,Swale Heating Ltd,SWA006,Corporate Resources and S151,Balance Sheet,Repairs And Mtce Holding A/C,Building Construction Material
http://thanet.gov.uk/supplierspend,Thanet District Council,28/07/2015,388211,1796.25,,Swale Heating Ltd,SWA006,Corporate Resources and S151,Balance Sheet,Repairs And Mtce Holding A/C,Building Construction Material
http://thanet.gov.uk/supplierspend,Thanet District Council,28/07/2015,388212,1807.38,,Swale Heating Ltd,SWA006,Corporate Resources and S151,Balance Sheet,Repairs And Mtce Holding A/C,Building Construction Material
http://thanet.gov.uk/supplierspend,Thanet District Council,28/07/2015,388213,1427.68,,Swale Heating Ltd,SWA006,Corporate Resources and S151,Balance Sheet,Repairs And Mtce Holding A/C,Building Construction Material
http://thanet.gov.uk/supplierspend,Thanet District Council,28/07/2015,388214,1670.69,,Swale Heating Ltd,SWA006,Corporate Resources and S151,Balance Sheet,Repairs And Mtce Holding A/C,Building Construction Material
http://thanet.gov.uk/supplierspend,Thanet District Council,28/07/2015,388216,1689.93,,Swale Heating Ltd,SWA006,Corporate Resources and S151,Balance Sheet,Repairs And Mtce Holding A/C,Building Construction Material
http://thanet.gov.uk/supplierspend,Thanet District Council,28/07/2015,388220,1427.68,,Swale Heating Ltd,SWA006,Corporate Resources and S151,Balance Sheet,Repairs And Mtce Holding A/C,Building Construction Material
http://thanet.gov.uk/supplierspend,Thanet District Council,28/07/2015,388221,1427.68,,Swale Heating Ltd,SWA006,Corporate Resources and S151,Balance Sheet,Repairs And Mtce Holding A/C,Building Construction Material
http://thanet.gov.uk/supplierspend,Thanet District Council,28/07/2015,388225,1796.25,,Swale Heating Ltd,SWA006,Corporate Resources and S151,Balance Sheet,Repairs And Mtce Holding A/C,Building Construction Material
http://thanet.gov.uk/supplierspend,Thanet District Council,28/07/2015,388243,1558.30,,Swale Heating Ltd,SWA006,Corporate Resources and S151,Balance Sheet,Repairs And Mtce Holding A/C,Building Construction Material
http://thanet.gov.uk/supplierspend,Thanet District Council,28/07/2015,388245,1927.88,,Swale Heating Ltd,SWA006,Corporate Resources and S151,Balance Sheet,Repairs And Mtce Holding A/C,Building Construction Material
http://thanet.gov.uk/supplierspend,Thanet District Council,28/07/2015,388246,1927.88,,Swale Heating Ltd,SWA006,Corporate Resources and S151,Balance Sheet,Repairs And Mtce Holding A/C,Building Construction Material
http://thanet.gov.uk/supplierspend,Thanet District Council,28/07/2015,388247,1796.25,,Swale Heating Ltd,SWA006,Corporate Resources and S151,Balance Sheet,Repairs And Mtce Holding A/C,Building Construction Material
http://thanet.gov.uk/supplierspend,Thanet District Council,28/07/2015,388248,1689.93,,Swale Heating Ltd,SWA006,Corporate Resources and S151,Balance Sheet,Repairs And Mtce Holding A/C,Building Construction Material
http://thanet.gov.uk/supplierspend,Thanet District Council,28/07/2015,388249,1948.13,,Swale Heating Ltd,SWA006,Corporate Resources and S151,Balance Sheet,Repairs And Mtce Holding A/C,Building Construction Material
http://thanet.gov.uk/supplierspend,Thanet District Council,28/07/2015,389063,376.60,,Swann Of York Limited,SWA009,Community Services,Revenue,"Equip, Furniture And Materials",Stationery
http://thanet.gov.uk/supplierspend,Thanet District Council,28/07/2015,389773,251.00,,Tennants Distribution Limited,TEN005,Operational Services,Revenue,Direct Transport Costs,Vehicle Management
http://thanet.gov.uk/supplierspend,Thanet District Council,28/07/2015,389492,3588.90,,Tfa Fuel Services Ltd,TFA003,Operational Services,Revenue,"Equip, Furniture And Materials",Utilities
http://thanet.gov.uk/supplierspend,Thanet District Council,28/07/2015,389700,41.38,,Tfa Fuel Services Ltd,TFA003,Operational Services,Revenue,Direct Transport Costs,Utilities
http://thanet.gov.uk/supplierspend,Thanet District Council,28/07/2015,389700,3501.15,,Tfa Fuel Services Ltd,TFA003,Operational Services,Revenue,"Equip, Furniture And Materials",Utilities
http://thanet.gov.uk/supplierspend,Thanet District Council,28/07/2015,389745,2042.00,,Titan Lifts Ltd,TIT006,Corporate Resources and S151,Balance Sheet,Capital Exp-Non Council Assets,Facilities And Management Serv
http://thanet.gov.uk/supplierspend,Thanet District Council,28/07/2015,388833,1700.00,,W Brazil & Bros,BRA001,Corporate Resources and S151,Balance Sheet,Repairs And Mtce Holding A/C,Environmental Services
http://thanet.gov.uk/supplierspend,Thanet District Council,28/07/2015,388155,65521.87,,W W Martin (Thanet) Ltd,MAR003,Corporate Resources and S151,Balance Sheet,Council Dwellings,Construction-Repair And Maint
http://thanet.gov.uk/supplierspend,Thanet District Council,28/07/2015,388156,66182.80,,W W Martin (Thanet) Ltd,MAR003,Corporate Resources and S151,Balance Sheet,Council Dwellings,Construction-Repair And Maint
http://thanet.gov.uk/supplierspend,Thanet District Council,28/07/2015,389518,292.80,,Westbury Industrial Supplies Ltd,WES042,Operational Services,Revenue,"Clothes, Uniforms & Laundry",Clothing
http://thanet.gov.uk/supplierspend,Thanet District Council,29/07/2015,389998,3952.80,,Aran Services Ltd,ARA003,Corporate Resources and S151,Balance Sheet,Capital Exp-Non Council Assets,Building Construction Material
http://thanet.gov.uk/supplierspend,Thanet District Council,29/07/2015,388522,7600.75,,Ass Of Electoral Administrators,AEA001,Corporate Resources and S151,Revenue,Services,Human Resources
http://thanet.gov.uk/supplierspend,Thanet District Council,29/07/2015,388601,10780.00,,Canterbury City Council,CAN004,Corporate Resources and S151,Balance Sheet,Other Land And Buildings-Hra,Various Cats - Public Sector
http://thanet.gov.uk/supplierspend,Thanet District Council,29/07/2015,389800,2475.00,,Caxtons Commercial Ltd,CAX006,Community Services,Revenue,Services,Consultancy
http://thanet.gov.uk/supplierspend,Thanet District Council,29/07/2015,389995,1582.14,,Co-Operative Bank Paypoint,COO018,Corporate Resources and S151,Revenue,Services,Financial Services
http://thanet.gov.uk/supplierspend,Thanet District Council,29/07/2015,389995,527.38,,Co-Operative Bank Paypoint,COO018,Community Services,Revenue,Services,Financial Services
http://thanet.gov.uk/supplierspend,Thanet District Council,29/07/2015,389842,16288.71,,Electoral Reform Services,ELE010,Corporate Resources and S151,Revenue,Communications & Computing,Facilities And Management Serv
http://thanet.gov.uk/supplierspend,Thanet District Council,29/07/2015,389842,3453.98,,Electoral Reform Services,ELE010,Corporate Resources and S151,Revenue,"Print, Stat And Gen Off Exps",Facilities And Management Serv
http://thanet.gov.uk/supplierspend,Thanet District Council,29/07/2015,389838,398.32,,Electraweld Ltd,ELE009,Corporate Resources and S151,Balance Sheet,Plant And Equipment,Building Construction Material
http://thanet.gov.uk/supplierspend,Thanet District Council,29/07/2015,389796,1000.00,,Freeflow Limited,FRE010,Operational Services,Revenue,"Repairs,  Alter & Mtce - Build",Building Construction Material
http://thanet.gov.uk/supplierspend,Thanet District Council,29/07/2015,389573,558.22,,Glosrose Engineering Limited,GLO016,Operational Services,Revenue,"Equip, Furniture And Materials",Horticultural
http://thanet.gov.uk/supplierspend,Thanet District Council,29/07/2015,389569,398.54,,Haynes Of Maidstone Ltd,HAY008,Operational Services,Revenue,Direct Transport Costs,Vehicle Management
http://thanet.gov.uk/supplierspend,Thanet District Council,29/07/2015,389854,1558.20,,Holbrook Revell Electrical Ltd,HOL015,Operational Services,Revenue,"Repairs,  Alter & Mtce - Build",Building Construction Material
http://thanet.gov.uk/supplierspend,Thanet District Council,29/07/2015,389722,442.52,,Hr Go Recruitment Ltd,HRG002,Community Services,Revenue,Agency Staff,Human Resources
http://thanet.gov.uk/supplierspend,Thanet District Council,29/07/2015,389836,881.39,,Hydro-Cleansing Ltd,HYD012,Operational Services,Revenue,Cleaning & Domestic Supplies,Building Construction Material
http://thanet.gov.uk/supplierspend,Thanet District Council,29/07/2015,389797,370.00,,John Reeve (Plant Hire) Ltd,REE013,Operational Services,Revenue,Cont Hire & Operating Lease,Vehicle Management
http://thanet.gov.uk/supplierspend,Thanet District Council,29/07/2015,389798,690.00,,John Reeve (Plant Hire) Ltd,REE013,Operational Services,Revenue,Cont Hire & Operating Lease,Vehicle Management
http://thanet.gov.uk/supplierspend,Thanet District Council,29/07/2015,389501,-2283.07,,Kent County Council (Kcs),KCC003,Operational Services,Revenue,Energy Costs,Facilities And Management Serv
http://thanet.gov.uk/supplierspend,Thanet District Council,29/07/2015,389502,1914.42,,Kent County Council (Kcs),KCC003,Operational Services,Revenue,Energy Costs,Facilities And Management Serv
http://thanet.gov.uk/supplierspend,Thanet District Council,29/07/2015,389503,1948.04,,Kent County Council (Kcs),KCC003,Operational Services,Revenue,Energy Costs,Facilities And Management Serv
http://thanet.gov.uk/supplierspend,Thanet District Council,29/07/2015,389734,376.00,,Lyreco Uk Limited,LYR001,Community Services,Revenue,"Print, Stat And Gen Off Exps",Stationery
http://thanet.gov.uk/supplierspend,Thanet District Council,29/07/2015,389803,416.28,,Mears Ltd,MEA003,Community Services,Revenue,"Repairs,  Alter & Mtce - Build",Construction-Repair And Maint
http://thanet.gov.uk/supplierspend,Thanet District Council,29/07/2015,389803,902.54,,Mears Ltd,MEA003,Operational Services,Revenue,"Repairs,  Alter & Mtce - Build",Construction-Repair And Maint
http://thanet.gov.uk/supplierspend,Thanet District Council,29/07/2015,389804,101199.36,,Mears Ltd,MEA003,Community Services,Revenue,"Repairs,  Alter & Mtce - Build",Construction-Repair And Maint
http://thanet.gov.uk/supplierspend,Thanet District Council,29/07/2015,389806,2065.39,,Mears Ltd,MEA003,Community Services,Revenue,"Repairs,  Alter & Mtce - Build",Construction-Repair And Maint
http://thanet.gov.uk/supplierspend,Thanet District Council,29/07/2015,389807,1973.65,,Mears Ltd,MEA003,Community Services,Revenue,"Repairs,  Alter & Mtce - Build",Construction-Repair And Maint
http://thanet.gov.uk/supplierspend,Thanet District Council,29/07/2015,389810,101199.36,,Mears Ltd,MEA003,Community Services,Revenue,"Repairs,  Alter & Mtce - Build",Construction-Repair And Maint
http://thanet.gov.uk/supplierspend,Thanet District Council,29/07/2015,389295,211.30,,Museums & Galleries Limited,MUS004,Community Services,Revenue,"Equip, Furniture And Materials",Stationery
http://thanet.gov.uk/supplierspend,Thanet District Council,29/07/2015,389966,340.00,,Nat West Bank,NWE001,East Kent Shared Services,Revenue,"Equip, Furniture And Materials",Various Categories
http://thanet.gov.uk/supplierspend,Thanet District Council,29/07/2015,389996,270.60,,Nat West Bank,NWE001,Corporate Resources and S151,Revenue,Services,Various Categories
http://thanet.gov.uk/supplierspend,Thanet District Council,29/07/2015,389312,354.66,,O2 (Uk) Ltd,O2U001,Operational Services,Revenue,Communications & Computing,ICT
http://thanet.gov.uk/supplierspend,Thanet District Council,29/07/2015,389820,17698.16,,Ocs Group Uk Ltd T/A Fountains,OCS005,Operational Services,Revenue,Cleaning & Domestic Supplies,Cleaning And Janitorial
http://thanet.gov.uk/supplierspend,Thanet District Council,29/07/2015,389825,464.56,,Ocs Group Uk Ltd T/A Fountains,OCS005,Operational Services,Revenue,Fixtures & Fittings,Cleaning And Janitorial
http://thanet.gov.uk/supplierspend,Thanet District Council,29/07/2015,389732,1229.90,,Patrol,PAT004,Operational Services,Revenue,Services,Street And Traffic Management
http://thanet.gov.uk/supplierspend,Thanet District Council,29/07/2015,390032,64529.75,,REDACTED PERSONAL DATA,N/A,Corporate Resources and S151,Balance Sheet,Salary Control Account,NTP
http://thanet.gov.uk/supplierspend,Thanet District Council,29/07/2015,389794,2378.41,,Royal Mail,ROY004,Community Services,Revenue,Communications & Computing,Mail Services
http://thanet.gov.uk/supplierspend,Thanet District Council,29/07/2015,389306,1420.00,,S W Flooring (South East) Limited,SWF002,Community Services,Revenue,Fixtures & Fittings,Building Construction Material
http://thanet.gov.uk/supplierspend,Thanet District Council,29/07/2015,389984,2068.31,,Santander,SAN017,Corporate Resources and S151,Revenue,Services,Various Categories
http://thanet.gov.uk/supplierspend,Thanet District Council,29/07/2015,389984,689.44,,Santander,SAN017,Community Services,Revenue,Services,Various Categories
http://thanet.gov.uk/supplierspend,Thanet District Council,29/07/2015,389985,833.02,,Santander,SAN017,Corporate Resources and S151,Revenue,Services,Various Categories
http://thanet.gov.uk/supplierspend,Thanet District Council,29/07/2015,389973,-219955.00,,Secretary Of State,SEC003,Corporate Resources and S151,Revenue,Revenue Financing,Government Agencies
http://thanet.gov.uk/supplierspend,Thanet District Council,29/07/2015,389973,1333956.00,,Secretary Of State,SEC003,Corporate Resources and S151,Balance Sheet,Collection Fund,Government Agencies
http://thanet.gov.uk/supplierspend,Thanet District Council,29/07/2015,387965,501.57,,Southern Electric,SEL007,Community Services,Revenue,Energy Costs,Utilities
http://thanet.gov.uk/supplierspend,Thanet District Council,29/07/2015,388013,1867.08,,Southern Electric,SEL007,Community Services,Revenue,Energy Costs,Utilities
http://thanet.gov.uk/supplierspend,Thanet District Council,29/07/2015,388150,314.82,,Southern Electric,SEL007,Community Services,Revenue,Energy Costs,Utilities
http://thanet.gov.uk/supplierspend,Thanet District Council,29/07/2015,389315,295.57,,Southern Electric,SEL007,Community Services,Revenue,Energy Costs,Utilities
http://thanet.gov.uk/supplierspend,Thanet District Council,29/07/2015,389321,1781.91,,Southern Electric,SEL007,Community Services,Revenue,Energy Costs,Utilities
http://thanet.gov.uk/supplierspend,Thanet District Council,29/07/2015,389323,351.83,,Southern Electric,SEL007,Community Services,Revenue,Energy Costs,Utilities
http://thanet.gov.uk/supplierspend,Thanet District Council,29/07/2015,389325,-314.82,,Southern Electric,SEL007,Community Services,Revenue,Energy Costs,Utilities
http://thanet.gov.uk/supplierspend,Thanet District Council,29/07/2015,389326,-1867.08,,Southern Electric,SEL007,Community Services,Revenue,Energy Costs,Utilities
http://thanet.gov.uk/supplierspend,Thanet District Council,29/07/2015,389328,-501.57,,Southern Electric,SEL007,Community Services,Revenue,Energy Costs,Utilities
http://thanet.gov.uk/supplierspend,Thanet District Council,29/07/2015,389581,618.05,,Southern Electric,SEL007,Operational Services,Revenue,Energy Costs,Utilities
http://thanet.gov.uk/supplierspend,Thanet District Council,29/07/2015,389274,481.88,,Southern Water,SWA001,Operational Services,Revenue,Water Services,Utilities
http://thanet.gov.uk/supplierspend,Thanet District Council,29/07/2015,389839,106.88,,Southern Water,SWA001,Community Services,Revenue,Water Services,Utilities
http://thanet.gov.uk/supplierspend,Thanet District Council,29/07/2015,389839,217.00,,Southern Water,SWA001,Operational Services,Revenue,Water Services,Utilities
http://thanet.gov.uk/supplierspend,Thanet District Council,29/07/2015,389840,272.50,,Southern Water,SWA001,Operational Services,Revenue,Water Services,Utilities
http://thanet.gov.uk/supplierspend,Thanet District Council,29/07/2015,389816,540.00,,Total Merchandise Ltd,TOT012,Community Services,Revenue,"Equip, Furniture And Materials",Stationery
http://thanet.gov.uk/supplierspend,Thanet District Council,29/07/2015,389988,2229.91,,Worldpay Ltd,WOR008,Corporate Resources and S151,Revenue,Services,Financial Services
http://thanet.gov.uk/supplierspend,Thanet District Council,29/07/2015,389989,410.68,,Worldpay Ltd,WOR008,Operational Services,Revenue,Services,Financial Services
http://thanet.gov.uk/supplierspend,Thanet District Council,29/07/2015,389990,542.67,,Worldpay Ltd,WOR008,Corporate Resources and S151,Revenue,Services,Financial Services
http://thanet.gov.uk/supplierspend,Thanet District Council,29/07/2015,389993,2723.87,,Worldpay Ltd,WOR008,Corporate Resources and S151,Revenue,Services,Financial Services
http://thanet.gov.uk/supplierspend,Thanet District Council,29/07/2015,389843,13412.56,,Xpress Software Solutions Ltd,XPR002,Corporate Resources and S151,Revenue,Communications & Computing,ICT
